Workbook

Sheet System Calculation
E5: =VLOOKUP("Pulsar botón para reiniciar todos los valores e iniciar un nuevo proyecto", Translations!$A$2:$E$209, MATCH($J$7, Translations!$A$1:$E$1, 0), FALSE) -> Press the button to reset all the values and start a new project
A7: SYSTEM CALCULATOR DETNOV CAD-151 | I7: =VLOOKUP("Idioma", Translations!$A$2:$E$209, MATCH($J$7, Translations!$A$1:$E$1, 0), FALSE) -> Language | J7: English | L7: SC 688 m 2025 b
A10: =VLOOKUP("Tiempo respaldo baterías", Translations!$A$4:$E$209, MATCH($J$7, Translations!$A$1:$E$1, 0), FALSE) -> Battery backup time | H10: =VLOOKUP("Máximo nº sirenas en alarma simultánea", Translations!$A$4:$E$209, MATCH($J$7, Translations!$A$1:$E$1, 0), FALSE) -> Maximum sounders in alarm at the same time
A11: =VLOOKUP("Tiempo en reposo", Translations!$A$4:$E$209, MATCH($J$7, Translations!$A$1:$E$1, 0), FALSE) -> Standby time | C11: h | D11: =VLOOKUP("Seleccionar tiempo en reposo", Translations!$A$4:$E$209, MATCH($J$7, Translations!$A$1:$E$1, 0), FALSE) -> Select standby time | H11: =VLOOKUP("Sirenas", Translations!$A$4:$E$209, MATCH($J$7, Translations!$A$1:$E$1, 0), FALSE) -> Sounders
A12: =VLOOKUP("Tiempo en alarma", Translations!$A$4:$E$209, MATCH($J$7, Translations!$A$1:$E$1, 0), FALSE) -> Alarm time | C12: min | D12: =VLOOKUP("Seleccionar tiempo en alarma", Translations!$A$4:$E$209, MATCH($J$7, Translations!$A$1:$E$1, 0), FALSE) -> Select alarm time | H12: =VLOOKUP("Cumplimentar el campo para el máximo % de sirenas en alarma al mismo tiempo (campo amarillo)", Translations!$A$4:$E$209, MATCH($J$7, Translations!$A$1:$E$1, 0), FALSE) -> Fill the field for the maximum % of sounders in alarm at the same time
B13: =IF(OR(B11=48,B11=24),VLOOKUP("Nota: los valores seleccionados no cumplen EN 54", Translations!$A$4:$E$209, MATCH($J$7, Translations!$A$1:$E$1, 0), FALSE)," ") -> 
A14: =VLOOKUP("Parámetros del sistema y baterías", Translations!$A$4:$E$209, MATCH($J$7, Translations!$A$1:$E$1, 0), FALSE) -> Battery and system parameters | D14: =IF(A15<>" ",VLOOKUP(A15,Data!B4:F17,5,0),0) -> 
B15: =IF(A15<>" ",VLOOKUP(A15,Data!B4:D17,2,0),0) ->  | C15: =IF(A15<>" ",VLOOKUP(A15,Data!B4:D17,3,0),0) ->  | D15: =VLOOKUP("Seleccionar central de la lista", Translations!$A$4:$E$209, MATCH($J$7, Translations!$A$1:$E$1, 0), FALSE) -> Select control panel from the list
B16: =IFERROR(VLOOKUP(A16,Data!H4:J7,2,0),0) -> 0 | C16: =IFERROR(VLOOKUP(A16,Data!H4:J7,3,0),0) -> 0 | D16: =VLOOKUP("Seleccionar batería de la lista", Translations!$A$4:$E$209, MATCH($J$7, Translations!$A$1:$E$1, 0), FALSE) -> Select battery from the list
B17: =VLOOKUP("I_Reposo (A)", Translations!$A$4:$E$209, MATCH($J$7, Translations!$A$1:$E$1, 0), FALSE) -> I_Standby (A) | C17: =VLOOKUP("I_Alarma (A)", Translations!$A$4:$E$209, MATCH($J$7, Translations!$A$1:$E$1, 0), FALSE) -> I_Alarm (A)
A18: =VLOOKUP("Salida auxiliar 24 V central", Translations!$A$4:$E$209, MATCH($J$7, Translations!$A$1:$E$1, 0), FALSE) -> Panel auxilliary 24 V output | E18: =IF(C18>0.5,"Aviso: Corriente máxima 500mA excedida. Necesaria fuente externa 24V","") -> 
A19: =VLOOKUP("Salida sirenas 1", Translations!$A$4:$E$209, MATCH($J$7, Translations!$A$1:$E$1, 0), FALSE) -> Sounder output 1 | E19: =IF(C19>0.5,"Aviso: Corriente máxima 500mA excedida. Necesaria fuente externa 24V","") -> 
A20: =VLOOKUP("Salida sirenas 2", Translations!$A$4:$E$209, MATCH($J$7, Translations!$A$1:$E$1, 0), FALSE) -> Sounder output 2 | E20: =IF(C20>0.5,"Aviso: Corriente máxima 500mA excedida. Necesaria fuente externa 24V","") -> 
A21: =VLOOKUP("I_Total_Reposo", Translations!$A$4:$E$209, MATCH($J$7, Translations!$A$1:$E$1, 0), FALSE) -> I_Total_Standby | B21: =B15+B18+B19+B20+B35+H37 ->  | C21: A
A22: =VLOOKUP("I_Total_Alarma", Translations!$A$4:$E$209, MATCH($J$7, Translations!$A$1:$E$1, 0), FALSE) -> I_Total_Alarm | B22: =C35+C15+C18+C19+C20+H37 ->  | C22: A | E22: =VLOOKUP("Batería mínima necesaria", Translations!$A$4:$E$209, MATCH($J$7, Translations!$A$1:$E$1, 0), FALSE) -> Minimum battery required | H22: =VLOOKUP("Tiempo baterías*", Translations!$A$4:$E$209, MATCH($J$7, Translations!$A$1:$E$1, 0), FALSE) -> Battery time*
A23: =VLOOKUP("Factor de degradación", Translations!$A$4:$E$209, MATCH($J$7, Translations!$A$1:$E$1, 0), FALSE) -> Derating factor | B23: 0.25 | C23: =1+B23 -> 1.25 | D23: =ROUNDUP(E23,1) ->  | E23: =((B21*B11)+(B22*(B12/60)))*C23 ->  | H23: 2 x 7,2 Ah | I23: 2 x 12 Ah | J23: 2 x 18 Ah | K23: 2 x 24 Ah
A24: 1,25 Cmin | B24: =IF(A15<>" ",VLOOKUP(A15,Data!B4:E17,4,0),0) ->  | D24: =MATCH(D23,Data!K8:K9,-1) ->  | H24: =((7.5/C23)-($B$22*($B$12/60)))/$B$21 ->  | I24: =((12/C23)-($B$22*($B$12/60)))/$B$21 ->  | J24: =((18/C23)-($B$22*($B$12/60)))/$B$21 ->  | K24: =((24/C23)-($B$22*($B$12/60)))/$B$21 -> 
H25: =VLOOKUP("*Tiempo baterías = Tiempo reposo + Tiempo en alarma", Translations!$A$4:$E$209, MATCH($J$7, Translations!$A$1:$E$1, 0), FALSE) -> *Battery time = Standby time + Alarm mode time
A26: =VLOOKUP("Batería seleccionada para la autonomía", Translations!$A$4:$E$209, MATCH($J$7, Translations!$A$1:$E$1, 0), FALSE) -> Battery selected for backup time | B26: =IF(E23<=$C$16,"OK",IF(E23>$D$14,VLOOKUP("No suficiente", Translations!$A$4:$E$209, MATCH($J$7, Translations!$A$1:$E$1, 0), FALSE),"Necesita batería:")) ->  | C26: =IF(B26<>"OK",INDEX(Data!L8:L9,'System Calculation'!D24)," ") -> 
B27: =IF(E23>$D$14,VLOOKUP("Necesita fuente de alimentación externa:", Translations!$A$4:$E$209, MATCH($J$7, Translations!$A$1:$E$1, 0), FALSE)) ->  | E27: =IF($B$27<>FALSE,Data!K36," ") ->  | H27: =IF(ISTEXT(B27)=TRUE,VLOOKUP("Revisar pestaña Conexión fuente externa", Translations!$A$4:$E$209, MATCH($J$7, Translations!$A$1:$E$1, 0), FALSE)) -> FALSE
B28: =IF(E23>$D$14,VLOOKUP("Con baterías adicionales mínimas de:", Translations!$A$4:$E$209, MATCH($J$7, Translations!$A$1:$E$1, 0), FALSE)) ->  | E28: =IF($B$27<>FALSE,Data!I36," ") -> 
A29: =VLOOKUP("Consumo sistema", Translations!$A$4:$E$209, MATCH($J$7, Translations!$A$1:$E$1, 0), FALSE) -> System consumption | B29: =IF(B22<=B24,"OK",VLOOKUP("El sistema excede el consumo máximo permitido", Translations!$A$4:$E$209, MATCH($J$7, Translations!$A$1:$E$1, 0), FALSE)) -> 
F31: =VLOOKUP("Cumplimentar el campo PCS si la central tiene tarjetas auxiliares (campo amarillo)", Translations!$A$4:$E$209, MATCH($J$7, Translations!$A$1:$E$1, 0), FALSE) -> Fill the PCS field if the panel includes extension cards
A32: =VLOOKUP("Lazo", Translations!$A$4:$E$209, MATCH($J$7, Translations!$A$1:$E$1, 0), FALSE) -> Loop | B32: =VLOOKUP("I_Reposo (A)", Translations!$A$4:$E$209, MATCH($J$7, Translations!$A$1:$E$1, 0), FALSE) -> I_Standby (A) | C32: =VLOOKUP("I_Alarma (A)", Translations!$A$4:$E$209, MATCH($J$7, Translations!$A$1:$E$1, 0), FALSE) -> I_Alarm (A) | E32: =VLOOKUP("Tarjetas auxiliares", Translations!$A$4:$E$209, MATCH($J$7, Translations!$A$1:$E$1, 0), FALSE) -> Extension cards | F32: =VLOOKUP("PCS", Translations!$A$4:$E$209, MATCH($J$7, Translations!$A$1:$E$1, 0), FALSE) -> PCS | G32: I_Standby (A) | H32: =VLOOKUP("I_Reposo (A)", Translations!$A$4:$E$209, MATCH($J$7, Translations!$A$1:$E$1, 0), FALSE) -> I_Standby (A)
A33: =VLOOKUP("Lazo 1", Translations!$A$4:$E$209, MATCH($J$7, Translations!$A$1:$E$1, 0), FALSE) -> Loop 1 | B33: ='SC_Loop 1'!$B$82*33/(24*0.9) -> 0 | C33: ='SC_Loop 1'!$B$85*33/(24*0.9) -> 0 | E33: TMB-251-CAN | G33: 0.05 | H33: =F33*G33 -> 0
A34: =VLOOKUP("Lazo 2", Translations!$A$4:$E$209, MATCH($J$7, Translations!$A$1:$E$1, 0), FALSE) -> Loop 2 | B34: ='SC_Loop 2'!$B$82*33/(24*0.9) -> 0 | C34: ='SC_Loop 2'!$B$85*33/(24*0.9) -> 0 | E34: TED-151-1PE-CAN | G34: 0.05 | H34: =F34*G34 -> 0
A35: =VLOOKUP("Total", Translations!$A$4:$E$209, MATCH($J$7, Translations!$A$1:$E$1, 0), FALSE) -> Total | B35: =SUM(B33:B34) -> 0 | C35: =SUM(C33:C34) -> 0 | E35: TED-151-CL-CAN | G35: 0.05 | H35: =F35*G35 -> 0
E36: FAD-AUXBAT | G36: 0.031 | H36: =F36*G36 -> 0
E37: =VLOOKUP("Total", Translations!$A$4:$E$209, MATCH($J$7, Translations!$A$1:$E$1, 0), FALSE) -> Total | F37: =SUM(F33:F33) -> 0 | H37: =SUM(H33:H36) -> 0
F38: =IF(F37>1,"Aviso: máximo 1 tarjeta de comunicación en la central","") -> 
A40: =VLOOKUP("Esta herramienta se puede utilizar como ayuda de diseño para Detnov Security S.L.",Translations!$A$4:$E$209,MATCH($J$7,Translations!$A$1:$E$1,0),FALSE) -> This tool may be used as a design help for Detnov Security S.L. We reserve the right not to be responsible for its accuracy, completeness or quality of the information provided, including any kind of information which could be incomplete or incorrect.

Sheet SC_Loop 1
A5: ='System Calculation'!A7 -> SYSTEM CALCULATOR DETNOV CAD-151 | N5: ='System Calculation'!L7 -> SC 688 m 2025 b
A7: =VLOOKUP("Cumplimentar Sección de cable en mm2 y Longitud de lazo en metros (campo amarillo)",Translations!$A$4:$E$209,MATCH('System Calculation'!$J$7,Translations!$A$1:$E$1,0),FALSE) -> Fill Cable cross section in mm2 and Loop length in meters
A8: =VLOOKUP("Seleccionar el factor de distribución en el lazo y topología de clase",Translations!$A$4:$E$209,MATCH('System Calculation'!$J$7,Translations!$A$1:$E$1,0),FALSE) -> Select the distribution factor in the loop and the topology
A9: =VLOOKUP("Lazo",Translations!$A$4:$E$209,MATCH('System Calculation'!$J$7,Translations!$A$1:$E$1,0),FALSE) -> Loop | L9: =VLOOKUP("Comprobación sistema",Translations!$A$4:$E$209,MATCH('System Calculation'!$J$7,Translations!$A$1:$E$1,0),FALSE) -> System check | P9: =VLOOKUP("Trama comunicaciones",Translations!$A$4:$E$209,MATCH('System Calculation'!$J$7,Translations!$A$1:$E$1,0),FALSE) -> Communication frame | R9: 26
A10: =VLOOKUP("Sección de cable",Translations!$A$4:$E$209,MATCH('System Calculation'!$J$7,Translations!$A$1:$E$1,0),FALSE) -> Cable cross section | C10: =IFERROR(VLOOKUP($B$10,Data!$H$17:$I$23,2,FALSE),"ERROR") -> ERROR | I10: =IF(B11>3500,VLOOKUP("Error: La longitud máxima de lazo es 3500 m",Translations!$A$4:$E$209,MATCH('System Calculation'!$J$7,Translations!$A$1:$E$1,0),FALSE),"") ->  | L10: =VLOOKUP("Corriente",Translations!$A$4:$E$209,MATCH('System Calculation'!$J$7,Translations!$A$1:$E$1,0),FALSE) -> Consumption | N10: =IFERROR(IF($B$85>0.75,VLOOKUP("FALLO",Translations!$A$4:$E$209,MATCH('System Calculation'!$J$7,Translations!$A$1:$E$1,0),FALSE),IF($B$107>=$B$85,"OK","FALLO")),VLOOKUP("ERROR",Translations!$A$4:$E$209,MATCH('System Calculation'!$J$7,Translations!$A$1:$E$1,0),FALSE)) -> OK | P10: =IFERROR(IF($B$85>0.75,VLOOKUP("Error: La corriente de lazo es mayor que la corriente máxima permitida",Translations!$A$4:$E$209,MATCH('System Calculation'!$J$7,Translations!$A$1:$E$1,0),FALSE),IF($B$107<$B$85,VLOOKUP("Error: La corriente de lazo es mayor que la corriente máxima permitida",Translations!$A$4:$E$209,MATCH('System Calculation'!$J$7,Translations!$A$1:$E$1,0),FALSE),"")),VLOOKUP("ERROR: Los datos no son correctos",Translations!$A$4:$E$209,MATCH('System Calculation'!$J$7,Translations!$A$1:$E$1,0),FALSE)) -> 
A11: =VLOOKUP("Longitud de lazo",Translations!$A$4:$E$209,MATCH('System Calculation'!$J$7,Translations!$A$1:$E$1,0),FALSE) -> Loop length | C11: =VLOOKUP("metros",Translations!$A$4:$E$209,MATCH('System Calculation'!$J$7,Translations!$A$1:$E$1,0),FALSE) -> meters | L11: =VLOOKUP("Direcciones",Translations!$A$4:$E$209,MATCH('System Calculation'!$J$7,Translations!$A$1:$E$1,0),FALSE) -> Directions | N11: =IF($N$77<=250,VLOOKUP("OK",Translations!$A$4:$E$209,MATCH('System Calculation'!$J$7,Translations!$A$1:$E$1,0),FALSE),VLOOKUP("FALLO",Translations!$A$4:$E$209,MATCH('System Calculation'!$J$7,Translations!$A$1:$E$1,0),FALSE)) -> OK | P11: =IF($N$77>250,VLOOKUP("Error: El lazo no admite más de 250 direcciones",Translations!$A$4:$E$209,MATCH('System Calculation'!$J$7,Translations!$A$1:$E$1,0),FALSE),"") ->  | Z11: =VLOOKUP("Información",Translations!$A$4:$E$209,MATCH('System Calculation'!$J$7,Translations!$A$1:$E$1,0),FALSE) -> Information
A12: =VLOOKUP("Distancia de S al primer dispositivo",Translations!$A$4:$E$209,MATCH('System Calculation'!$J$7,Translations!$A$1:$E$1,0),FALSE) -> Distance from S to first device | C12: =VLOOKUP("metros",Translations!$A$4:$E$209,MATCH('System Calculation'!$J$7,Translations!$A$1:$E$1,0),FALSE) -> meters | D12: =IF(B12+B13>B11,VLOOKUP("La suma de distancias desde la central a los dipositivos no puede ser mayor a la longitud de lazo",Translations!$A$4:$E$209,MATCH('System Calculation'!$J$7,Translations!$A$1:$E$1,0),FALSE)," ") ->  | P12: =IFERROR(IF(P13<>"",VLOOKUP("Indicaciones",Translations!$A$4:$E$209,MATCH('System Calculation'!$J$7,Translations!$A$1:$E$1,0),FALSE),""),VLOOKUP("Indicaciones",Translations!$A$4:$E$209,MATCH('System Calculation'!$J$7,Translations!$A$1:$E$1,0),FALSE)) ->  | Z12: =VLOOKUP("Esta es la distancia de la salida del lazo hasta el primer dispositivo",Translations!$A$4:$E$209,MATCH('System Calculation'!$J$7,Translations!$A$1:$E$1,0),FALSE) -> This is the distance from the S of the loop to the first device
A13: =VLOOKUP("Distancia de R al último dispositivo",Translations!$A$4:$E$209,MATCH('System Calculation'!$J$7,Translations!$A$1:$E$1,0),FALSE) -> Distance from R to last device | C13: =VLOOKUP("metros",Translations!$A$4:$E$209,MATCH('System Calculation'!$J$7,Translations!$A$1:$E$1,0),FALSE) -> meters | P13: =IFERROR(IF($N$77>250,VLOOKUP("Reduzca el número de direcciones utilizadas",Translations!$A$4:$E$209,MATCH('System Calculation'!$J$7,Translations!$A$1:$E$1,0),FALSE),IF($B$85>0.75,VLOOKUP("Trate de reducir el consumo ajustando la cantidad de dispositivos",Translations!$A$4:$E$209,MATCH('System Calculation'!$J$7,Translations!$A$1:$E$1,0),FALSE),IF($B$107<$B$85,VLOOKUP("Trate de modificar los parámetros de cable y lazo",Translations!$A$4:$E$209,MATCH('System Calculation'!$J$7,Translations!$A$1:$E$1,0),FALSE),""))),VLOOKUP("Revise o rellene los datos de configuración de lazo",Translations!$A$4:$E$209,MATCH('System Calculation'!$J$7,Translations!$A$1:$E$1,0),FALSE)) ->  | Z13: =VLOOKUP("Esta es la distancia del último dispositivo al retorno del lazo",Translations!$A$4:$E$209,MATCH('System Calculation'!$J$7,Translations!$A$1:$E$1,0),FALSE) -> This is the distance from the last device to the R of the loop
A14: =VLOOKUP("Topología de lazo",Translations!$A$4:$E$209,MATCH('System Calculation'!$J$7,Translations!$A$1:$E$1,0),FALSE) -> Loop topology | C14: =IFERROR(VLOOKUP(B14,Data!$D$45:$E$46,2,FALSE),"ERROR") -> ERROR | E14: =IF($B$14=Data!D46,VLOOKUP("Lazo abierto. Toda la corriente en el mismo extremo del cable (peor caso)",Translations!$A$4:$E$209,MATCH('System Calculation'!$J$7,Translations!$A$1:$E$1,0),FALSE),VLOOKUP("Lazo cerrado. Se divide la corriente por los dos extremos (mejor caso)",Translations!$A$4:$E$209,MATCH('System Calculation'!$J$7,Translations!$A$1:$E$1,0),FALSE)) -> Closed loop. The current is divided on both ends (best case) | Z14: =VLOOKUP("La topología de lazo hace referencia",Translations!$A$4:$E$209,MATCH('System Calculation'!$J$7,Translations!$A$1:$E$1,0),FALSE) -> Loop topology takes into account whether the loop is closed in Class A, or the loop is in degraded mode due to an open loop fault
A15: =VLOOKUP("Factor de distribución",Translations!$A$4:$E$209,MATCH('System Calculation'!$J$7,Translations!$A$1:$E$1,0),FALSE) -> Distribution factor | B15: 1 | C15: =VLOOKUP(B15,Data!$A$21:$B$49,2,FALSE) -> 0.57 | E15: =IF($B$15=1,VLOOKUP("Distribuidos equitativamente (mejor caso)",Translations!$A$4:$E$209,MATCH('System Calculation'!$J$7,Translations!$A$1:$E$1,0),FALSE),IF($B$15=0,VLOOKUP("Todos en el mismo extremo del cable (peor caso)",Translations!$A$4:$E$209,MATCH('System Calculation'!$J$7,Translations!$A$1:$E$1,0),FALSE),VLOOKUP("Caso intermedio",Translations!$A$4:$E$209,MATCH('System Calculation'!$J$7,Translations!$A$1:$E$1,0),FALSE))) -> Equally distributed (best case) | Z15: =VLOOKUP("El factor de distribución hace referencia",Translations!$A$4:$E$209,MATCH('System Calculation'!$J$7,Translations!$A$1:$E$1,0),FALSE) -> Distribution factor is an estimation of how equitative are the devices distributed along the loop, being 100% perfectly distributed
C17: =VLOOKUP("Cumplimentar el campo PCS para la configuración deseada (campo amarillo)",Translations!$A$4:$E$209,MATCH('System Calculation'!$J$7,Translations!$A$1:$E$1,0),FALSE) -> Fill the PCS field for the desired configuration
A18: =VLOOKUP("Dispositivos lazo 1",Translations!$A$4:$E$209,MATCH('System Calculation'!$J$7,Translations!$A$1:$E$1,0),FALSE) -> Loop 1 devices
A19: =VLOOKUP("REF.",Translations!$A$4:$E$209,MATCH('System Calculation'!$J$7,Translations!$A$1:$E$1,0),FALSE) -> REF. | B19: =VLOOKUP("Descripción",Translations!$A$4:$E$209,MATCH('System Calculation'!$J$7,Translations!$A$1:$E$1,0),FALSE) -> Description | C19: =VLOOKUP("PCS",Translations!$A$4:$E$209,MATCH('System Calculation'!$J$7,Translations!$A$1:$E$1,0),FALSE) -> PCS | D19: I_Standby (A) | E19: =VLOOKUP("I_Reposo (A)",Translations!$A$4:$E$209,MATCH('System Calculation'!$J$7,Translations!$A$1:$E$1,0),FALSE) -> I_Standby (A) | F19: PCS_alarm | G19: I_Alarm (A) | H19: I_Alarm_aux (A) | I19: =VLOOKUP("I_Alarma (A)",Translations!$A$4:$E$209,MATCH('System Calculation'!$J$7,Translations!$A$1:$E$1,0),FALSE) -> I_Alarm (A) | J19: =VLOOKUP("I_Sirenas (A)",Translations!$A$4:$E$209,MATCH('System Calculation'!$J$7,Translations!$A$1:$E$1,0),FALSE) -> I_Sounders (A) | K19: =VLOOKUP("DET",Translations!$A$4:$E$209,MATCH('System Calculation'!$J$7,Translations!$A$1:$E$1,0),FALSE) -> DET | L19: =VLOOKUP("MOD",Translations!$A$4:$E$209,MATCH('System Calculation'!$J$7,Translations!$A$1:$E$1,0),FALSE) -> MOD | M19: =VLOOKUP("SIR",Translations!$A$4:$E$209,MATCH('System Calculation'!$J$7,Translations!$A$1:$E$1,0),FALSE) -> SND | N19: =VLOOKUP("DIR",Translations!$A$4:$E$209,MATCH('System Calculation'!$J$7,Translations!$A$1:$E$1,0),FALSE) -> DIR
A20: DOD-220A | B20: =VLOOKUP("Detector óptico analógico",Translations!$A$4:$E$209,MATCH('System Calculation'!$J$7,Translations!$A$1:$E$1,0),FALSE) -> Addressable optical smoke detector | D20: =127.2*10^-6 -> 0.0001272 | E20: =C20*D20 -> 0 | F20: =IFERROR(INDEX($AE$22:$AE$37,MATCH(H20,$AB$22:$AB$37,0)),0) -> 0 | G20: =3.61*10^-3 -> 0.00361 | H20: =IF(C20>0,G20+ROW(G20)/100000000000,0) -> 0 | I20: =IF(F20>0,F20*G20+(C20-F20)*D20,C20*D20) -> 0 | K20: =IF(C20<>0,C20," ") ->  | N20: =IF(K20<>0,K20," ") ->  | AA20: * Si no quiero que algún dispositivo esté aquí, poner a 0 su valor en columna H
A21: DOD-220A-I | B21: =VLOOKUP("Detector óptico analógico con aislador incorporado",Translations!$A$4:$E$209,MATCH('System Calculation'!$J$7,Translations!$A$1:$E$1,0),FALSE) -> Addressable optical smoke detector with built-in isolator | D21: =195.8*10^-6 -> 0.0001958 | E21: =C21*D21 -> 0 | F21: 0 | G21: =3.74*10^-3 -> 0.00374 | H21: =IF(C21>0,G21+ROW(G21)/100000000000,0) -> 0 | I21: =IF(F21>0,F21*G21+(C21-F21)*D21,C21*D21) -> 0 | N21: =IF(K21<>0,K21," ") ->  | AA21: Orden | AB21: Valor | AC21: PCS | AD21: Cuantos quedan para 16 | AE21: PCS alarma
A22: DOTD-230A | B22: =VLOOKUP("Detector óptico-térmico",Translations!$A$4:$E$209,MATCH('System Calculation'!$J$7,Translations!$A$1:$E$1,0),FALSE) -> Addressable optical & heat detector | D22: =141.6*10^-6 -> 0.0001416 | E22: =C22*D22 -> 0 | F22: 0 | G22: =3.6*10^-3 -> 0.0036 | H22: 0 | I22: 0 | N22: =IF(K22<>0,K22," ") ->  | AA22: 1 | AB22: =LARGE($H$20:$H$53,AA22) -> 0 | AC22: =INDEX(C:C,MATCH(AB22,H:H,0)) -> 0 | AD22: =IF(16-AC22>0,16-AC22,0) -> 16 | AE22: =IF(AD22>0,AC22,16) -> 0
A23: DOTD-230A-I | B23: =VLOOKUP("Detector óptico-térmico con aislador incorporado",Translations!$A$4:$E$209,MATCH('System Calculation'!$J$7,Translations!$A$1:$E$1,0),FALSE) -> Addressable optical & heat detector with built-in isolator | D23: =212.4*10^-6 -> 0.0002124 | E23: 0 | F23: 0 | G23: =3.74*10^-3 -> 0.00374 | H23: 0 | I23: 0 | AA23: 2 | AB23: 0 | AC23: 0 | AD23: =IF(AD22-AC23>0,AD22-AC23,0) -> 16 | AE23: =IF(AD23>0,AC23,AD22) -> 0
A24: DTD-210A | B24: =VLOOKUP("Detector térmico analógico",Translations!$A$4:$E$209,MATCH('System Calculation'!$J$7,Translations!$A$1:$E$1,0),FALSE) -> Addressable heat detector | D24: =122.2*10^-6 -> 0.0001222 | E24: 0 | F24: 0 | G24: =3.64*10^-3 -> 0.00364 | H24: 0 | I24: 0 | AA24: 3 | AB24: 0 | AC24: 0 | AD24: =IF(AD23-AC24>0,AD23-AC24,0) -> 16 | AE24: =IF(AD24>0,AC24,AD23) -> 0
A25: DTD-210A-I | B25: =VLOOKUP("Detector térmico analógico con aislador incorporado",Translations!$A$4:$E$209,MATCH('System Calculation'!$J$7,Translations!$A$1:$E$1,0),FALSE) -> Addressable heat detector with built-in isolator | D25: =192.4*10^-6 -> 0.0001924 | E25: 0 | F25: 0 | G25: =3.76*10^-3 -> 0.00376 | H25: 0 | I25: 0 | AA25: 4 | AB25: 0 | AC25: 0 | AD25: 16 | AE25: 0
A26: DTD-215A | B26: =VLOOKUP("Detector térmico de alta temperatura analógico",Translations!$A$4:$E$209,MATCH('System Calculation'!$J$7,Translations!$A$1:$E$1,0),FALSE) -> Addressable high temperature detector | D26: =133.7*10^-6 -> 0.0001337 | E26: 0 | F26: 0 | G26: =3.78*10^-3 -> 0.00378 | H26: 0 | I26: 0 | AA26: 5 | AB26: 0 | AC26: 0 | AD26: 16 | AE26: 0
A27: DTD-215A-I | B27: =VLOOKUP("Detector térmico de alta temperatura analógico con aislador incorporado",Translations!$A$4:$E$209,MATCH('System Calculation'!$J$7,Translations!$A$1:$E$1,0),FALSE) -> Addressable high temperature detector with built-in isolator | D27: =203.5*10^-6 -> 0.0002035 | E27: 0 | F27: 0 | G27: =3.77*10^-3 -> 0.00377 | H27: 0 | I27: 0 | AA27: 6 | AB27: 0 | AC27: 0 | AD27: 16 | AE27: 0
A28: DGD-600 | B28: =VLOOKUP("Detector autónomo de gas natural (24V)",Translations!$A$4:$E$209,MATCH('System Calculation'!$J$7,Translations!$A$1:$E$1,0),FALSE) -> Standalone natural gas detector (24V) | D28: =2180*10^-6 -> 0.00218 | E28: 0 | F28: 0 | G28: =2.22*10^-3 -> 0.00222 | H28: 0 | I28: 0 | AA28: 7 | AB28: 0 | AC28: 0 | AD28: 16 | AE28: 0
A29: DGD-600-AC | B29: =VLOOKUP("Detector autónomo de gas natural (230V)",Translations!$A$4:$E$209,MATCH('System Calculation'!$J$7,Translations!$A$1:$E$1,0),FALSE) -> Standalone natural gas detector (230V) | D29: =2600*10^-6 -> 0.0026 | E29: 0 | F29: 0 | G29: =3.16*10^-3 -> 0.00316 | H29: 0 | I29: 0 | AA29: 8 | AB29: 0 | AC29: 0 | AD29: 16 | AE29: 0
A30: DGD-620 | B30: =VLOOKUP("Detector autónomo de GLP (24V)",Translations!$A$4:$E$209,MATCH('System Calculation'!$J$7,Translations!$A$1:$E$1,0),FALSE) -> Standalone LPG detector (24V) | D30: =2180*10^-6 -> 0.00218 | E30: 0 | F30: 0 | G30: =2.22*10^-3 -> 0.00222 | H30: 0 | I30: 0 | AA30: 9 | AB30: 0 | AC30: 0 | AD30: 16 | AE30: 0
A31: DGD-620-AC | B31: =VLOOKUP("Detector autónomo de GLP (230V)",Translations!$A$4:$E$209,MATCH('System Calculation'!$J$7,Translations!$A$1:$E$1,0),FALSE) -> Standalone LPG detector (230V) | D31: =2600*10^-6 -> 0.0026 | E31: 0 | F31: 0 | G31: =3.16*10^-3 -> 0.00316 | H31: 0 | I31: 0 | AA31: 10 | AB31: 0 | AC31: 0 | AD31: 16 | AE31: 0
A32: DBD-70A | B32: =VLOOKUP("Detector lineal de humos analógico",Translations!$A$4:$E$209,MATCH('System Calculation'!$J$7,Translations!$A$1:$E$1,0),FALSE) -> Addressable beam smoke detector | D32: 0.004 | E32: =C32*D32 -> 0 | F32: =C32 -> 0 | G32: 0.004 | H32: =0 -> 0 | I32: =IF(F32>0,F32*G32+(C32-F32)*D32,C32*D32) -> 0 | P32: =IF(C32>20,VLOOKUP("Info: El máximo número de barreras es 20",Translations!$A$4:$E$209,MATCH('System Calculation'!$J$7,Translations!$A$1:$E$1,0),FALSE),IF(C32>0,VLOOKUP("Info: Alinear barreras de una en una",Translations!$A$4:$E$209,MATCH('System Calculation'!$J$7,Translations!$A$1:$E$1,0),FALSE)," ")) ->  | AA32: 11 | AB32: 0 | AC32: 0 | AD32: 16 | AE32: 0
A33: MAD-401 & MAD-401-I | B33: =VLOOKUP("Módulo analógico de 1 entrada (sin/con aislador)",Translations!$A$4:$E$209,MATCH('System Calculation'!$J$7,Translations!$A$1:$E$1,0),FALSE) -> Addressable module 1 input (with/without isolator) | D33: =216.8*10^-6 -> 0.0002168 | E33: 0 | F33: =IFERROR(INDEX($AE$22:$AE$37,MATCH(H33,$AB$22:$AB$37,0)),0) -> 0 | G33: =3.06*10^-3 -> 0.00306 | H33: 0 | I33: 0 | L33: =IF(C33<>0,C33," ") ->  | N33: =IF(L33<>0,L33," ") ->  | AA33: 12 | AB33: 0 | AC33: 0 | AD33: 16 | AE33: 0
A34: MAD-402 & MAD-402-I | B34: =VLOOKUP("Módulo analógico de 2 entradas (sin/con aislador)",Translations!$A$4:$E$209,MATCH('System Calculation'!$J$7,Translations!$A$1:$E$1,0),FALSE) -> Addressable module 2 inputs (with/without isolator) | D34: =217.4*10^-6 -> 0.0002174 | E34: =C34*D34 -> 0 | F34: 0 | G34: =5.95*10^-3 -> 0.00595 | H34: 0 | I34: 0 | L34: =IF(C34<>0,C34,0) -> 0 | N34: =IF(L34<>0,L34*2," ") ->  | AA34: 13 | AB34: 0 | AC34: 0 | AD34: 16 | AE34: 0
A35: MAD-405-I | B35: =VLOOKUP("Módulo analógico de 5 entradas con aislador",Translations!$A$4:$E$209,MATCH('System Calculation'!$J$7,Translations!$A$1:$E$1,0),FALSE) -> Addressable module 5 inputs with isolator | D35: =278.6*10^-6 -> 0.0002786 | E35: 0 | F35: 0 | G35: =3.15*10^-3 -> 0.00315 | H35: 0 | I35: 0 | L35: =IF(C35<>0,C35,0) -> 0 | N35: =IF(L35<>0,L35*5," ") ->  | AA35: 14 | AB35: 0 | AC35: 0 | AD35: 16 | AE35: 0
A36: MAD-409-I | B36: =VLOOKUP("Módulo analógico de 10 entradas con aislador",Translations!$A$4:$E$209,MATCH('System Calculation'!$J$7,Translations!$A$1:$E$1,0),FALSE) -> Addressable module 10 inputs with isolator | D36: =367.7*10^-6 -> 0.0003677 | E36: 0 | F36: 0 | G36: =3.3*10^-3 -> 0.0033 | H36: 0 | I36: 0 | L36: =IF(C36<>0,C36,0) -> 0 | N36: =IF(L36<>0,L36*10," ") ->  | AA36: 15 | AB36: 0 | AC36: 0 | AD36: 16 | AE36: 0
A37: MAD-411 & MAD-411-I | B37: =VLOOKUP("Módulo analógico de 1 salida (sin/con aislador)",Translations!$A$4:$E$209,MATCH('System Calculation'!$J$7,Translations!$A$1:$E$1,0),FALSE) -> Addressable module 1 output (with/without isolator) | D37: =191.6*10^-6 -> 0.0001916 | E37: 0 | F37: 0 | G37: =3.06*10^-3 -> 0.00306 | H37: 0 | I37: 0 | L37: =IF(C37<>0,C37," ") ->  | N37: =IF(L37<>0,L37," ") ->  | AA37: 16 | AB37: 0 | AC37: 0 | AD37: 16 | AE37: 0
A38: MAD-412 & MAD-412-I | B38: =VLOOKUP("Módulo analógico de 2 salidas (sin/con aislador)",Translations!$A$4:$E$209,MATCH('System Calculation'!$J$7,Translations!$A$1:$E$1,0),FALSE) -> Addressable module 2 outputs (with/without isolator) | D38: =191*10^-6 -> 0.000191 | E38: 0 | F38: 0 | G38: =5.84*10^-3 -> 0.00584 | H38: 0 | I38: 0 | L38: =IF(C38<>0,C38,0) -> 0 | N38: =IF(L38<>0,L38*2," ") ->  | AA38: Total | AC38: =SUM(AC22:AC37) -> 0 | AE38: =SUM(AE22:AE37) -> 0
A39: MAD-415-I | B39: =VLOOKUP("Módulo analógico de 5 salidas con aislador",Translations!$A$4:$E$209,MATCH('System Calculation'!$J$7,Translations!$A$1:$E$1,0),FALSE) -> Addressable module 5 outputs with isolator | D39: =188.8*10^-6 -> 0.0001888 | E39: 0 | F39: 0 | G39: =3.95*10^-3 -> 0.00395 | H39: 0 | I39: 0 | L39: 0 | N39: =IF(L39<>0,L39*5," ") ->  | P39: =IF(AND(C39>0),VLOOKUP("Info: Fuente externa 24V necesaria. La central puede dar 24Vaux, si la corriente máxima 500mA no es excedida.",Translations!$A$4:$E$209,MATCH('System Calculation'!$J$7,Translations!$A$1:$E$1,0),FALSE)," ") -> 
A40: MAD-419-I | B40: =VLOOKUP("Módulo analógico de 10 salidas con aislador",Translations!$A$4:$E$209,MATCH('System Calculation'!$J$7,Translations!$A$1:$E$1,0),FALSE) -> Addressable module 10 outputs with isolator | D40: =189.2*10^-6 -> 0.0001892 | E40: 0 | F40: 0 | G40: =4.84*10^-3 -> 0.00484 | H40: 0 | I40: 0 | L40: 0 | N40: =IF(L40<>0,L40*10," ") ->  | P40: =IF(AND(C40>0),VLOOKUP("Info: Fuente externa 24V necesaria. La central puede dar 24Vaux, si la corriente máxima 500mA no es excedida.",Translations!$A$4:$E$209,MATCH('System Calculation'!$J$7,Translations!$A$1:$E$1,0),FALSE)," ") -> 
A41: MAD-421 & MAD-421-I | B41: =VLOOKUP("Módulo analógico de 1 entrada/1 salida (sin/con aislador)",Translations!$A$4:$E$209,MATCH('System Calculation'!$J$7,Translations!$A$1:$E$1,0),FALSE) -> Addressable module 1 input/1 output (with/without isolator) | D41: =210.1*10^-6 -> 0.0002101 | E41: 0 | F41: 0 | G41: =5.92*10^-3 -> 0.00592 | H41: 0 | I41: 0 | L41: 0 | N41: =IF(L41<>0,L41*2," ") -> 
A42: MAD-422 & MAD-422-I | B42: =VLOOKUP("Módulo analógico de 2 entradas/2 salidas (sin/con aislador)",Translations!$A$4:$E$209,MATCH('System Calculation'!$J$7,Translations!$A$1:$E$1,0),FALSE) -> Addressable module 2 inputs/2 outputs (with/without isolator) | D42: =234*10^-6 -> 0.000234 | E42: 0 | F42: 0 | G42: =5.91*10^-3 -> 0.00591 | H42: 0 | I42: 0 | L42: 0 | N42: =IF(L42<>0,L42*4," ") -> 
A43: MAD-425-I | B43: =VLOOKUP("Módulo analógico de 5 entradas/5 salidas con aislador",Translations!$A$4:$E$209,MATCH('System Calculation'!$J$7,Translations!$A$1:$E$1,0),FALSE) -> Addressable module 5 inputs/5 outputs with isolator | D43: =284*10^-6 -> 0.000284 | E43: 0 | F43: 0 | G43: =4.08*10^-3 -> 0.00408 | H43: 0 | I43: 0 | L43: 0 | N43: =IF(L43<>0,L43*10," ") ->  | P43: =IF(AND(C43>0),VLOOKUP("Info: Fuente externa 24V necesaria. La central puede dar 24Vaux, si la corriente máxima 500mA no es excedida.",Translations!$A$4:$E$209,MATCH('System Calculation'!$J$7,Translations!$A$1:$E$1,0),FALSE)," ") -> 
A44: MAD-429-I | B44: =VLOOKUP("Módulo analógico de 10 entradas/10 salidas con aislador",Translations!$A$4:$E$209,MATCH('System Calculation'!$J$7,Translations!$A$1:$E$1,0),FALSE) -> Addressable module 10 inputs/10 outputs with isolator | D44: =376.6*10^-6 -> 0.0003766 | E44: 0 | F44: 0 | G44: =5*10^-3 -> 0.005 | H44: 0 | I44: 0 | L44: 0 | N44: =IF(L44<>0,L44*20," ") ->  | P44: =IF(AND(C44>0),VLOOKUP("Info: Fuente externa 24V necesaria. La central puede dar 24Vaux, si la corriente máxima 500mA no es excedida.",Translations!$A$4:$E$209,MATCH('System Calculation'!$J$7,Translations!$A$1:$E$1,0),FALSE)," ") -> 
A45: MAD-431 & MAD-431-I | B45: =VLOOKUP("Módulo analógico de 1 salida 24V (sin/con aislador)",Translations!$A$4:$E$209,MATCH('System Calculation'!$J$7,Translations!$A$1:$E$1,0),FALSE) -> Addressable module 1 24V output (with/without isolator) | D45: =215*10^-6 -> 0.000215 | E45: 0 | F45: 0 | G45: =3.61*10^-3 -> 0.00361 | H45: 0 | I45: 0 | L45: =IF(C45<>0,C45,0) -> 0 | N45: =IF(L45<>0,L45," ") ->  | P45: =IF(AND(C45>0),VLOOKUP("Info: Fuente externa 24V necesaria. La central puede dar 24Vaux, si la corriente máxima 500mA no es excedida.",Translations!$A$4:$E$209,MATCH('System Calculation'!$J$7,Translations!$A$1:$E$1,0),FALSE)," ") -> 
A46: MAD-432 & MAD-432-I | B46: =VLOOKUP("Módulo analógico de 2 salidas 24V (sin/con aislador)",Translations!$A$4:$E$209,MATCH('System Calculation'!$J$7,Translations!$A$1:$E$1,0),FALSE) -> Addressable module 2 24V outputs (with/without isolator) | D46: =203.3*10^-6 -> 0.0002033 | E46: 0 | F46: 0 | G46: =6.8*10^-3 -> 0.0068 | H46: 0 | I46: 0 | L46: 0 | N46: =IF(L46<>0,L46*2," ") ->  | P46: =IF(AND(C46>0),VLOOKUP("Info: Fuente externa 24V necesaria. La central puede dar 24Vaux, si la corriente máxima 500mA no es excedida.",Translations!$A$4:$E$209,MATCH('System Calculation'!$J$7,Translations!$A$1:$E$1,0),FALSE)," ") -> 
A47: MAD-441 & MAD-441-I | B47: =VLOOKUP("Módulo analógico de 1 zona convencional (sin/con aislador)",Translations!$A$4:$E$209,MATCH('System Calculation'!$J$7,Translations!$A$1:$E$1,0),FALSE) -> Addressable module 1 conventional zone (with/without isolator) | D47: =187.8*10^-6 -> 0.0001878 | E47: 0 | F47: 0 | G47: =3.04*10^-3 -> 0.00304 | H47: 0 | I47: 0 | L47: 0 | N47: =IF(L47<>0,L47," ") ->  | P47: =IF(AND(C47>0),VLOOKUP("Info: Fuente externa 24V necesaria. La central puede dar 24Vaux, si la corriente máxima 500mA no es excedida.",Translations!$A$4:$E$209,MATCH('System Calculation'!$J$7,Translations!$A$1:$E$1,0),FALSE)," ") -> 
A48: MAD-442 & MAD-442-I | B48: =VLOOKUP("Módulo analógico de 2 zonas convencionales (sin/con aislador)",Translations!$A$4:$E$209,MATCH('System Calculation'!$J$7,Translations!$A$1:$E$1,0),FALSE) -> Addressable module 2 conventional zones (with/without isolator) | D48: =187.8*10^-6 -> 0.0001878 | E48: 0 | F48: 0 | G48: =5.84*10^-3 -> 0.00584 | H48: 0 | I48: 0 | L48: 0 | N48: =IF(L48<>0,L48*2," ") ->  | P48: =IF(AND(C48>0),VLOOKUP("Info: Fuente externa 24V necesaria. La central puede dar 24Vaux, si la corriente máxima 500mA no es excedida.",Translations!$A$4:$E$209,MATCH('System Calculation'!$J$7,Translations!$A$1:$E$1,0),FALSE)," ") -> 
A49: MAD-481 | B49: =VLOOKUP("Módulo analógico de 1 salida 230V",Translations!$A$4:$E$209,MATCH('System Calculation'!$J$7,Translations!$A$1:$E$1,0),FALSE) -> Addressable module 1 230V output | D49: 0.0001176 | E49: =C49*D49 -> 0 | F49: 0 | G49: 0.00288 | H49: 0 | I49: 0 | L49: 0 | N49: =IF(L49<>0,L49," ") -> 
A50: MAD-490 | B50: =VLOOKUP("Módulo analógico aislador",Translations!$A$4:$E$209,MATCH('System Calculation'!$J$7,Translations!$A$1:$E$1,0),FALSE) -> Addressable module isolator | D50: =69.6*10^-6 -> 6.96e-05 | E50: 0 | F50: 0 | G50: =37.66*10^-3 -> 0.03766 | H50: 0 | I50: 0 | L50: 0 | N50: =IF(L50<>0,L50," ") -> 
A51: MAD-450 & MAD-450-I | B51: =VLOOKUP("Pulsador analógico con aislador",Translations!$A$4:$E$209,MATCH('System Calculation'!$J$7,Translations!$A$1:$E$1,0),FALSE) -> Addressable manual call with isolator | D51: =176.6*10^-6 -> 0.0001766 | E51: 0 | F51: 0 | G51: =3.03*10^-3 -> 0.00303 | H51: 0 | I51: 0 | L51: 0 | N51: =IF(C51<>0,C51," ") -> 
A52: MAD-451-I | B52: =VLOOKUP("Pulsador analógico con aislador",Translations!$A$4:$E$209,MATCH('System Calculation'!$J$7,Translations!$A$1:$E$1,0),FALSE) -> Addressable manual call with isolator | D52: =177.4*10^-6 -> 0.0001774 | E52: 0 | F52: 0 | G52: =3*10^-3 -> 0.003 | H52: 0 | I52: 0 | L52: 0 | N52: =IF(C52<>0,C52," ") -> 
A53: MAD-452 & MAD-452-I | B53: =VLOOKUP("Pulsador analógico con aislador",Translations!$A$4:$E$209,MATCH('System Calculation'!$J$7,Translations!$A$1:$E$1,0),FALSE) -> Addressable manual call with isolator | D53: 0.000341 | E53: 0 | F53: 0 | G53: 0.00181 | H53: 0 | I53: 0 | L53: 0 | N53: =IF(C53<>0,C53," ") -> 
A54: MAD-461-I | B54: =VLOOKUP("Sirena analógica con aislador",Translations!$A$4:$E$209,MATCH('System Calculation'!$J$7,Translations!$A$1:$E$1,0),FALSE) -> Addressable sounder with isolator | D54: =176.9*10^-6 -> 0.0001769 | E54: 0 | F54: =C54*'System Calculation'!$I$11 -> 0 | G54: =8.35*10^-3 -> 0.00835 | H54: 0 | I54: =IF(F54>0,F54*G54+(C54-F54)*D54,C54*D54) -> 0 | J54: =IF(C54*I54=0," ",I54) ->  | M54: =IF(C54<>0,C54," ") ->  | N54: =IF(M54<>0,M54," ") -> 
A55: MAD-464-I | B55: =VLOOKUP("Sirena analógica con aislador",Translations!$A$4:$E$209,MATCH('System Calculation'!$J$7,Translations!$A$1:$E$1,0),FALSE) -> Addressable sounder with isolator | D55: =176.5*10^-6 -> 0.0001765 | E55: =C55*D55 -> 0 | F55: =C55*'System Calculation'!$I$11 -> 0 | G55: =12.32*10^-3 -> 0.01232 | H55: 0 | I55: 0 | N55: =IF(M55<>0,M55," ") -> 
A56: MAD-465-I | B56: =VLOOKUP("Sirena analógica con flash y aislador",Translations!$A$4:$E$209,MATCH('System Calculation'!$J$7,Translations!$A$1:$E$1,0),FALSE) -> Addressable sounder with beacon and isolator | D56: =177.3*10^-6 -> 0.0001773 | E56: =C56*D56 -> 0 | F56: =C56*'System Calculation'!$I$11 -> 0 | G56: =12.32*10^-3 -> 0.01232 | H56: 0 | I56: 0
A57: =VLOOKUP("MAD-564-I (lazo)",Translations!$A$4:$E$209,MATCH('System Calculation'!$J$7,Translations!$A$1:$E$1,0),FALSE) -> MAD-564-I (loop) | B57: =VLOOKUP("Sirena analógica con aislador",Translations!$A$4:$E$209,MATCH('System Calculation'!$J$7,Translations!$A$1:$E$1,0),FALSE) -> Addressable sounder with isolator | D57: =1580*10^-6 -> 0.00158 | E57: 0 | F57: =C57*'System Calculation'!$I$11 -> 0 | G57: =21.11*10^-3 -> 0.02111 | H57: 0 | I57: 0
A58: =VLOOKUP("MAD-564-I (FA externa)",Translations!$A$4:$E$209,MATCH('System Calculation'!$J$7,Translations!$A$1:$E$1,0),FALSE) -> MAD-564-I (external PS) | B58: =VLOOKUP("Sirena analógica con aislador",Translations!$A$4:$E$209,MATCH('System Calculation'!$J$7,Translations!$A$1:$E$1,0),FALSE) -> Addressable sounder with isolator | D58: =350*10^-6 -> 0.00035 | E58: 0 | F58: =C58*'System Calculation'!$I$11 -> 0 | G58: =0.8*10^-3 -> 0.0008 | H58: 0 | I58: 0 | P58: =IF(AND(C58>0),VLOOKUP("Info: Fuente externa 24V necesaria. Certificada EN 54-4",Translations!$A$4:$E$209,MATCH('System Calculation'!$J$7,Translations!$A$1:$E$1,0),FALSE)," ") -> 
A59: =VLOOKUP("MAD-565-I (lazo)",Translations!$A$4:$E$209,MATCH('System Calculation'!$J$7,Translations!$A$1:$E$1,0),FALSE) -> MAD-565-I (loop) | B59: =VLOOKUP("Sirena analógica con VAD y aislador",Translations!$A$4:$E$209,MATCH('System Calculation'!$J$7,Translations!$A$1:$E$1,0),FALSE) -> Addressable sounder with VAD and isolator | D59: =1580*10^-6 -> 0.00158 | E59: 0 | F59: =C59*'System Calculation'!$I$11 -> 0 | G59: =33.45*10^-3 -> 0.03345 | H59: 0 | I59: 0
A60: =VLOOKUP("MAD-565-I (FA externa)",Translations!$A$4:$E$209,MATCH('System Calculation'!$J$7,Translations!$A$1:$E$1,0),FALSE) -> MAD-565-I (external PS) | B60: =VLOOKUP("Sirena analógica con VAD y aislador",Translations!$A$4:$E$209,MATCH('System Calculation'!$J$7,Translations!$A$1:$E$1,0),FALSE) -> Addressable sounder with VAD and isolator | D60: =350*10^-6 -> 0.00035 | E60: 0 | F60: =C60*'System Calculation'!$I$11 -> 0 | G60: =0.8*10^-3 -> 0.0008 | H60: 0 | I60: 0 | P60: =IF(AND(C60>0),VLOOKUP("Info: Fuente externa 24V necesaria. Certificada EN 54-4",Translations!$A$4:$E$209,MATCH('System Calculation'!$J$7,Translations!$A$1:$E$1,0),FALSE)," ") -> 
A61: =VLOOKUP("MAD-565-I - solo flash (lazo)",Translations!$A$4:$E$209,MATCH('System Calculation'!$J$7,Translations!$A$1:$E$1,0),FALSE) -> MAD-565-I - only flash (loop) | B61: =VLOOKUP("VAD analógico con aislador",Translations!$A$4:$E$209,MATCH('System Calculation'!$J$7,Translations!$A$1:$E$1,0),FALSE) -> Addressable VAD with isolator | D61: =1580*10^-6 -> 0.00158 | E61: =C61*D61 -> 0 | F61: =C61*'System Calculation'!$I$11 -> 0 | G61: =33.45*10^-3 -> 0.03345 | H61: 0 | I61: 0
A62: =VLOOKUP("MAD-565-I - solo flash (FA externa)",Translations!$A$4:$E$209,MATCH('System Calculation'!$J$7,Translations!$A$1:$E$1,0),FALSE) -> MAD-565-I - only flash (external PS) | B62: =VLOOKUP("VAD analógico con aislador",Translations!$A$4:$E$209,MATCH('System Calculation'!$J$7,Translations!$A$1:$E$1,0),FALSE) -> Addressable VAD with isolator | D62: =350*10^-6 -> 0.00035 | E62: =C62*D62 -> 0 | F62: =C62*'System Calculation'!$I$11 -> 0 | G62: =0.8*10^-3 -> 0.0008 | H62: 0 | I62: 0 | P62: =IF(AND(C62>0),VLOOKUP("Info: Fuente externa 24V necesaria. Certificada EN 54-4",Translations!$A$4:$E$209,MATCH('System Calculation'!$J$7,Translations!$A$1:$E$1,0),FALSE)," ") -> 
A63: =VLOOKUP("MAD-567-I (lazo)",Translations!$A$4:$E$209,MATCH('System Calculation'!$J$7,Translations!$A$1:$E$1,0),FALSE) -> MAD-567-I (loop) | B63: =VLOOKUP("Base sirena con aislador",Translations!$A$4:$E$209,MATCH('System Calculation'!$J$7,Translations!$A$1:$E$1,0),FALSE) -> Sounder base with isolator | D63: =1170*10^-6 -> 0.00117 | E63: 0 | F63: =C63*'System Calculation'!$I$11 -> 0 | G63: =8.95*10^-3 -> 0.00895 | H63: 0 | I63: 0
A64: =VLOOKUP("MAD-567-I (FA externa)",Translations!$A$4:$E$209,MATCH('System Calculation'!$J$7,Translations!$A$1:$E$1,0),FALSE) -> MAD-567-I (external PS) | B64: =VLOOKUP("Base sirena con aislador",Translations!$A$4:$E$209,MATCH('System Calculation'!$J$7,Translations!$A$1:$E$1,0),FALSE) -> Sounder base with isolator | D64: =261*10^-6 -> 0.000261 | E64: =C64*D64 -> 0 | F64: =C64*'System Calculation'!$I$11 -> 0 | G64: =0.71*10^-3 -> 0.00071 | H64: 0 | I64: 0 | P64: =IF(AND(C64>0),VLOOKUP("Info: Fuente externa 24V necesaria. Certificada EN 54-4",Translations!$A$4:$E$209,MATCH('System Calculation'!$J$7,Translations!$A$1:$E$1,0),FALSE)," ") -> 
A65: =VLOOKUP("MAD-569-I (lazo)",Translations!$A$4:$E$209,MATCH('System Calculation'!$J$7,Translations!$A$1:$E$1,0),FALSE) -> MAD-569-I (loop) | B65: =VLOOKUP("Base sirena y VAD con aislador",Translations!$A$4:$E$209,MATCH('System Calculation'!$J$7,Translations!$A$1:$E$1,0),FALSE) -> Sounder base and VAD with isolator | D65: =1170*10^-6 -> 0.00117 | E65: 0 | F65: =C65*'System Calculation'!$I$11 -> 0 | G65: =23.26*10^-3 -> 0.02326 | H65: 0 | I65: 0
A66: =VLOOKUP("MAD-569-I (FA externa)",Translations!$A$4:$E$209,MATCH('System Calculation'!$J$7,Translations!$A$1:$E$1,0),FALSE) -> MAD-569-I (external PS) | B66: =VLOOKUP("Base sirena y VAD con aislador",Translations!$A$4:$E$209,MATCH('System Calculation'!$J$7,Translations!$A$1:$E$1,0),FALSE) -> Sounder base and VAD with isolator | D66: =258.9*10^-6 -> 0.0002589 | E66: 0 | F66: =C66*'System Calculation'!$I$11 -> 0 | G66: =0.71*10^-3 -> 0.00071 | H66: 0 | I66: 0 | P66: =IF(AND(C66>0),VLOOKUP("Info: Fuente externa 24V necesaria. Certificada EN 54-4",Translations!$A$4:$E$209,MATCH('System Calculation'!$J$7,Translations!$A$1:$E$1,0),FALSE)," ") -> 
A67: =VLOOKUP("MAD-569-I - solo flash (lazo)",Translations!$A$4:$E$209,MATCH('System Calculation'!$J$7,Translations!$A$1:$E$1,0),FALSE) -> MAD-569-I - only flash (loop) | B67: =VLOOKUP("Base VAD con aislador",Translations!$A$4:$E$209,MATCH('System Calculation'!$J$7,Translations!$A$1:$E$1,0),FALSE) -> VAD base with isolator | D67: =1170*10^-6 -> 0.00117 | E67: =C67*D67 -> 0 | F67: =C67*'System Calculation'!$I$11 -> 0 | G67: =23.26*10^-3 -> 0.02326 | H67: 0 | I67: 0
A68: =VLOOKUP("MAD-569-I solo flash (FA externa)",Translations!$A$4:$E$209,MATCH('System Calculation'!$J$7,Translations!$A$1:$E$1,0),FALSE) -> MAD-569-I only flash (external PS) | B68: =VLOOKUP("Base VAD con aislador",Translations!$A$4:$E$209,MATCH('System Calculation'!$J$7,Translations!$A$1:$E$1,0),FALSE) -> VAD base with isolator | D68: =258.9*10^-6 -> 0.0002589 | E68: 0 | F68: =C68*'System Calculation'!$I$11 -> 0 | G68: =0.71*10^-3 -> 0.00071 | H68: 0 | I68: 0 | P68: =IF(AND(C68>0),VLOOKUP("Info: Fuente externa 24V necesaria. Certificada EN 54-4",Translations!$A$4:$E$209,MATCH('System Calculation'!$J$7,Translations!$A$1:$E$1,0),FALSE)," ") -> 
A69: MAD-472 | B69: =VLOOKUP("Base sirena",Translations!$A$4:$E$209,MATCH('System Calculation'!$J$7,Translations!$A$1:$E$1,0),FALSE) -> Sounder base | D69: =107.4*10^-6 -> 0.0001074 | E69: =C69*D69 -> 0 | F69: =C69*'System Calculation'!$I$11 -> 0 | G69: =8.45*10^-3 -> 0.00845 | H69: 0 | I69: 0
A70: MAD-473 | B70: =VLOOKUP("Base sirena y flash",Translations!$A$4:$E$209,MATCH('System Calculation'!$J$7,Translations!$A$1:$E$1,0),FALSE) -> Sounder base with beacon | D70: =106.8*10^-6 -> 0.0001068 | E70: 0 | F70: =C70*'System Calculation'!$I$11 -> 0 | G70: =9.48*10^-3 -> 0.00948 | H70: 0 | I70: 0
A71: PAD-10A-I | B71: =VLOOKUP("Piloto indicador analógico con aislador",Translations!$A$4:$E$209,MATCH('System Calculation'!$J$7,Translations!$A$1:$E$1,0),FALSE) -> Addressable remote indicator with isolator | D71: =176.4*10^-6 -> 0.0001764 | E71: =C71*D71 -> 0 | F71: =C71*'System Calculation'!$I$11 -> 0 | G71: =2.98*10^-3 -> 0.00298 | H71: 0 | I71: 0 | N71: =IF(C71<>0,C71," ") -> 
A72: =VLOOKUP("TPLD-100 (CCD-102) = 3 dir. Lazo",Translations!$A$4:$E$209,MATCH('System Calculation'!$J$7,Translations!$A$1:$E$1,0),FALSE) -> TPLD-100 (CCD-102) = 3 Loop dir. | B72: =VLOOKUP("Conexión central convencional 2 zonas",Translations!$A$4:$E$209,MATCH('System Calculation'!$J$7,Translations!$A$1:$E$1,0),FALSE) -> Conventional control panel conection 2 zones | D72: =1863*10^-6 -> 0.001863 | E72: 0 | F72: =C72 -> 0 | G72: =1.86*10^-3 -> 0.00186 | H72: 0 | I72: 0 | N72: =IF(C72<>0,C72*3," ") -> 
A73: =VLOOKUP("TPLD-100 (CCD-104) = 5 dir. Lazo",Translations!$A$4:$E$209,MATCH('System Calculation'!$J$7,Translations!$A$1:$E$1,0),FALSE) -> TPLD-100 (CCD-104) = 5 Loop dir. | B73: =VLOOKUP("Conexión central convencional 4 zonas",Translations!$A$4:$E$209,MATCH('System Calculation'!$J$7,Translations!$A$1:$E$1,0),FALSE) -> Conventional control panel conection 4 zones | D73: =1863*10^-6 -> 0.001863 | E73: 0 | F73: =C73 -> 0 | G73: =1.86*10^-3 -> 0.00186 | H73: 0 | I73: 0 | N73: =IF(C73<>0,C73*5," ") -> 
A74: =VLOOKUP("TPLD-100 (CCD-108) = 9 dir. Lazo",Translations!$A$4:$E$209,MATCH('System Calculation'!$J$7,Translations!$A$1:$E$1,0),FALSE) -> TPLD-100 (CCD-108) = 9 Loop dir. | B74: =VLOOKUP("Conexión central convencional 8 zonas",Translations!$A$4:$E$209,MATCH('System Calculation'!$J$7,Translations!$A$1:$E$1,0),FALSE) -> Conventional control panel conection 8 zones | D74: 0.001863 | E74: 0 | F74: 0 | G74: 0.00186 | H74: 0 | I74: 0 | N74: =IF(C74<>0,C74*9," ") -> 
A75: =VLOOKUP("TPLD-100 (CCD-112) = 13 dir. Lazo",Translations!$A$4:$E$209,MATCH('System Calculation'!$J$7,Translations!$A$1:$E$1,0),FALSE) -> TPLD-100 (CCD-112) = 13 Loop dir. | B75: =VLOOKUP("Conexión central convencional 12 zonas",Translations!$A$4:$E$209,MATCH('System Calculation'!$J$7,Translations!$A$1:$E$1,0),FALSE) -> Conventional control panel conection 12 zones | D75: 0.001863 | E75: 0 | F75: 0 | G75: 0.00186 | H75: 0 | I75: 0 | N75: =IF(C75<>0,C75*13," ") -> 
A76: =VLOOKUP("TPLD-100 (CCD-103) = 7 dir. Lazo",Translations!$A$4:$E$209,MATCH('System Calculation'!$J$7,Translations!$A$1:$E$1,0),FALSE) -> TPLD-100 (CCD-103) = 7 Loop dir. | B76: =VLOOKUP("Conexión central de extinción",Translations!$A$4:$E$209,MATCH('System Calculation'!$J$7,Translations!$A$1:$E$1,0),FALSE) -> Extinguising control panel conection | D76: 0.001863 | E76: 0 | F76: 0 | G76: 0.00186 | H76: 0 | I76: 0 | N76: =IF(C76<>0,C76*7," ") -> 
A77: =VLOOKUP("Total",Translations!$A$4:$E$209,MATCH('System Calculation'!$J$7,Translations!$A$1:$E$1,0),FALSE) -> Total | C77: =SUM(C20:C76) -> 0 | E77: =SUM(E20:E76) -> 0 | F77: =SUM(F20:F70) -> 0 | I77: =SUM(I20:I76) -> 0 | J77: 0 | K77: 0 | L77: 0 | M77: 0 | N77: 0
C78: =IF($N$77>250,VLOOKUP("Error: El lazo no admite más de 250 direcciones",Translations!$A$4:$E$209,MATCH('System Calculation'!$J$7,Translations!$A$1:$E$1,0),FALSE),"") -> 
A80: =VLOOKUP("Parámetros de lazo",Translations!$A$4:$E$209,MATCH('System Calculation'!$J$7,Translations!$A$1:$E$1,0),FALSE) -> Loop parameters
A81: Cu | B81: 0.0172 | C81: Ω*mm2/m
A82: =VLOOKUP("I_Reposo",Translations!$A$4:$E$209,MATCH('System Calculation'!$J$7,Translations!$A$1:$E$1,0),FALSE) -> I_Standby | B82: =E77+SUMIF(C77,">0",$R$9)/1000 -> 0 | C82: A
A83: =VLOOKUP("I_Alarma",Translations!$A$4:$E$209,MATCH('System Calculation'!$J$7,Translations!$A$1:$E$1,0),FALSE) -> I_Alarm | B83: =I77-J77 -> 0 | C83: A
A84: =VLOOKUP("I_Sirenas",Translations!$A$4:$E$209,MATCH('System Calculation'!$J$7,Translations!$A$1:$E$1,0),FALSE) -> I_Sounders | B84: =J77 -> 0 | C84: A
A85: =VLOOKUP("I_Total",Translations!$A$4:$E$209,MATCH('System Calculation'!$J$7,Translations!$A$1:$E$1,0),FALSE) -> I_Total | B85: =SUM(B83:B84)+SUMIF(C77,">0",$R$9)/1000 -> 0 | C85: A
A86: =VLOOKUP("V_Lin_Anillo",Translations!$A$4:$E$209,MATCH('System Calculation'!$J$7,Translations!$A$1:$E$1,0),FALSE) -> V_Lin_Ring | B86: =IF(B85>0.1,7.9,IF(B106<1,6.9,7.9)) -> 7.9 | C86: V
A88: =VLOOKUP("Sección mínima de cable para longitudes estándar",Translations!$A$4:$E$209,MATCH('System Calculation'!$J$7,Translations!$A$1:$E$1,0),FALSE) -> Minimum cable cross section for standard lenghts | M88: =VLOOKUP("Aviso: La sección mínima de cable en el lazo es 0,5 mm2",Translations!$A$4:$E$209,MATCH('System Calculation'!$J$7,Translations!$A$1:$E$1,0),FALSE) -> Warning: The minimum cross section in the loop is 0,5 mm2
A89: =VLOOKUP("Longitudes",Translations!$A$4:$E$209,MATCH('System Calculation'!$J$7,Translations!$A$1:$E$1,0),FALSE) -> Lengths | B89: 1000 | C89: 1500 | D89: 1500 | E89: 2000 | G89: 2000 | I89: 2500 | J89: 3000 | K89: 3500 | L89: m
A90: =VLOOKUP("R_Cable",Translations!$A$4:$E$209,MATCH('System Calculation'!$J$7,Translations!$A$1:$E$1,0),FALSE) -> R_Cable | B90: =((($B$81*B89)/B92)*2) ->  | C90: =((($B$81*C89)/C92)*2) ->  | D90: =((($B$81*D89)/D92)*2) ->  | L90: Ω
A91: =VLOOKUP("R_eq_Anillo",Translations!$A$4:$E$209,MATCH('System Calculation'!$J$7,Translations!$A$1:$E$1,0),FALSE) -> R_eq_Ring | B91: =B90/2 ->  | C91: =C90/2 ->  | I91: =I90/2 ->  | J91: =J90/2 ->  | K91: =K90/2 ->  | L91: Ω
A92: =VLOOKUP("S_min",Translations!$A$4:$E$209,MATCH('System Calculation'!$J$7,Translations!$A$1:$E$1,0),FALSE) -> S_min | B92: =IF((($B$81*B$89)/(($B$86-((SUM($C$21,$C$23,$C$25,$C$27)*0.1)*$B$85))/$B$85))<0.5,0.5,(($B$81*B$89)/(($B$86-((SUM($C$21,$C$23,$C$25,$C$27)*0.1)*$B$85))/$B$85))) ->  | L92: mm2
A94: =VLOOKUP("Longitud máxima de cable para secciones estándar (IEC 60228)",Translations!$A$4:$E$209,MATCH('System Calculation'!$J$7,Translations!$A$1:$E$1,0),FALSE) -> Maximum cable length for standard cross sections (IEC 60228) | M94: =VLOOKUP("Aviso: La sección mínima de cable en el lazo es 0,5 mm2",Translations!$A$4:$E$209,MATCH('System Calculation'!$J$7,Translations!$A$1:$E$1,0),FALSE) -> Warning: The minimum cross section in the loop is 0,5 mm2
A95: =VLOOKUP("Sección",Translations!$A$4:$E$209,MATCH('System Calculation'!$J$7,Translations!$A$1:$E$1,0),FALSE) -> Cross section | B95: 0.5 | C95: 0.75 | D95: 0.75 | E95: 1 | G95: 1 | I95: 1.5 | J95: 2.5 | K95: 4 | L95: mm2
A96: =VLOOKUP("R_Cable",Translations!$A$4:$E$209,MATCH('System Calculation'!$J$7,Translations!$A$1:$E$1,0),FALSE) -> R_Cable | B96: =$B$81*B98/B95*2 ->  | C96: =$B$81*C98/C95*2 ->  | L96: Ω
A97: =VLOOKUP("R_eq_Ring",Translations!$A$4:$E$209,MATCH('System Calculation'!$J$7,Translations!$A$1:$E$1,0),FALSE) -> R_eq_Ring | B97: =B96/2 ->  | C97: =C96/2 ->  | I97: =I96/2 ->  | J97: =J96/2 ->  | K97: =K96/2 ->  | L97: Ω
A98: =VLOOKUP("L_max",Translations!$A$4:$E$209,MATCH('System Calculation'!$J$7,Translations!$A$1:$E$1,0),FALSE) -> L_max | B98: =IF((((($B$86-((SUM($C$21,$C$23,$C$25,$C$27)*0.1)*$B$85))/$B$85)*B$95)/$B$81)>3500,3500,(((($B$86-((SUM($C$21,$C$23,$C$25,$C$27)*0.1)*$B$85))/$B$85)*B$95)/$B$81)) ->  | L98: m
A100: =VLOOKUP("Cálculo Corriente Máxima",Translations!$A$4:$E$209,MATCH('System Calculation'!$J$7,Translations!$A$1:$E$1,0),FALSE) -> Maximum current calculation
A101: =VLOOKUP("Sección de cable",Translations!$A$4:$E$209,MATCH('System Calculation'!$J$7,Translations!$A$1:$E$1,0),FALSE) -> Cable cross section | B101: =$B$10 -> 0 | C101: mm2 | I101: =IF(B101<0.5,"Error: La sección mínima de cable en el lazo es 0,5 mm2","") -> Error: La sección mínima de cable en el lazo es 0,5 mm2
A102: =VLOOKUP("Longitud efectiva de cable",Translations!$A$4:$E$209,MATCH('System Calculation'!$J$7,Translations!$A$1:$E$1,0),FALSE) -> Effective cable length | B102: =IF(B14=Data!D46,$B$11-MIN(B12,B13),$B$11) -> 0 | C102: m | D102: =B12/B11 ->  | E102: =IFERROR(B13/B11,"") ->  | F102: =(B11-B12-B13)/B11 ->  | I102: =IF(B11>3500,VLOOKUP("Error: La longitud máxima de lazo es 3500 m",Translations!$A$4:$E$209,MATCH('System Calculation'!$J$7,Translations!$A$1:$E$1,0),FALSE),"") -> 
A103: =VLOOKUP("R_Cable_Sis",Translations!$A$4:$E$209,MATCH('System Calculation'!$J$7,Translations!$A$1:$E$1,0),FALSE) -> R_Cable_Sys | B103: =IFERROR(((($B$81*B102)/B101)*2)+(SUM(C21,C23,C25,C27,)*0.1),"") ->  | C103: Ω
A104: =VLOOKUP("R_eq_Clase",Translations!$A$4:$E$209,MATCH('System Calculation'!$J$7,Translations!$A$1:$E$1,0),FALSE) -> R_eq_Class | B104: =IFERROR(B103*C14,"") ->  | C104: Ω | D104: Depende de la topología del lazo | E104: =VLOOKUP("Depende de la topología de lazo",Translations!$A$4:$E$209,MATCH('System Calculation'!$J$7,Translations!$A$1:$E$1,0),FALSE) -> Depends on the loop topology
A105: =VLOOKUP("R_eq_Final",Translations!$A$4:$E$209,MATCH('System Calculation'!$J$7,Translations!$A$1:$E$1,0),FALSE) -> R_eq_Final | B105: =IFERROR((((($B$81*B11*F102)/B101)*2)+(SUM(C21,C23,C25,C27,)*0.1))*C14*C15+IF(B14=Data!D46,((($B$81*B11*(MAX(D102,E102))/B101)*2)*C14),((($B$81*B11*D102)/B101)*2)*C14+((($B$81*B11*E102)/B101)*2)*C14),"") ->  | C105: Ω | D105: Depende del factor de distribución | E105: =VLOOKUP("Depende del factor de distribución",Translations!$A$4:$E$209,MATCH('System Calculation'!$J$7,Translations!$A$1:$E$1,0),FALSE) -> Depends on the distribution factor
A106: =VLOOKUP("Caída de tensión",Translations!$A$4:$E$209,MATCH('System Calculation'!$J$7,Translations!$A$1:$E$1,0),FALSE) -> Voltage drop | B106: =IFERROR(B85*B105,"") ->  | C106: V
A107: =VLOOKUP("Corriente máxima",Translations!$A$4:$E$209,MATCH('System Calculation'!$J$7,Translations!$A$1:$E$1,0),FALSE) -> Maximum current | B107: =IFERROR($B$86/$B$105-$R$9*10^-3,"") ->  | C107: A
A108: I_max
A109: =VLOOKUP("Comprobación sistema",Translations!$A$4:$E$209,MATCH('System Calculation'!$J$7,Translations!$A$1:$E$1,0),FALSE) -> System check
A110: =VLOOKUP("Corriente",Translations!$A$4:$E$209,MATCH('System Calculation'!$J$7,Translations!$A$1:$E$1,0),FALSE) -> Consumption | C110: =IFERROR(IF($B$85>0.75,VLOOKUP("FALLO",Translations!$A$4:$E$209,MATCH('System Calculation'!$J$7,Translations!$A$1:$E$1,0),FALSE),IF($B$107>=$B$85,"OK","FALLO")),VLOOKUP("ERROR",Translations!$A$4:$E$209,MATCH('System Calculation'!$J$7,Translations!$A$1:$E$1,0),FALSE)) -> OK | I110: =IFERROR(IF($B$85>0.75,VLOOKUP("Error: La corriente de lazo es mayor que la corriente máxima permitida",Translations!$A$4:$E$209,MATCH('System Calculation'!$J$7,Translations!$A$1:$E$1,0),FALSE),IF($B$107<$B$85,VLOOKUP("Error: La corriente de lazo es mayor que la corriente máxima permitida",Translations!$A$4:$E$209,MATCH('System Calculation'!$J$7,Translations!$A$1:$E$1,0),FALSE),"")),VLOOKUP("ERROR: Los datos no son correctos",Translations!$A$4:$E$209,MATCH('System Calculation'!$J$7,Translations!$A$1:$E$1,0),FALSE)) -> 
A111: =VLOOKUP("Direcciones",Translations!$A$4:$E$209,MATCH('System Calculation'!$J$7,Translations!$A$1:$E$1,0),FALSE) -> Directions | C111: =IF($N$77<=250,VLOOKUP("OK",Translations!$A$4:$E$209,MATCH('System Calculation'!$J$7,Translations!$A$1:$E$1,0),FALSE),VLOOKUP("FALLO",Translations!$A$4:$E$209,MATCH('System Calculation'!$J$7,Translations!$A$1:$E$1,0),FALSE)) -> OK | I111: =IF($N$77>250,VLOOKUP("Error: El lazo no admite más de 250 direcciones",Translations!$A$4:$E$209,MATCH('System Calculation'!$J$7,Translations!$A$1:$E$1,0),FALSE),"") -> 
A114: =VLOOKUP("Esta herramienta se puede utilizar como ayuda de diseño para Detnov Security S.L.",Translations!A4:E209,MATCH('System Calculation'!J7,Translations!A1:E1,0),FALSE) -> This tool may be used as a design help for Detnov Security S.L. We reserve the right not to be responsible for its accuracy, completeness or quality of the information provided, including any kind of information which could be incomplete or incorrect.

Sheet SC_Loop 2
A5: ='System Calculation'!A7 -> SYSTEM CALCULATOR DETNOV CAD-151 | N5: ='System Calculation'!L7 -> SC 688 m 2025 b
A7: =VLOOKUP("Cumplimentar Sección de cable en mm2 y Longitud de lazo en metros (campo amarillo)",Translations!$A$4:$E$209,MATCH('System Calculation'!$J$7,Translations!$A$1:$E$1,0),FALSE) -> Fill Cable cross section in mm2 and Loop length in meters
A8: =VLOOKUP("Seleccionar el factor de distribución en el lazo y topología de clase",Translations!$A$4:$E$209,MATCH('System Calculation'!$J$7,Translations!$A$1:$E$1,0),FALSE) -> Select the distribution factor in the loop and the topology
A9: =VLOOKUP("Lazo",Translations!$A$4:$E$209,MATCH('System Calculation'!$J$7,Translations!$A$1:$E$1,0),FALSE) -> Loop | L9: =VLOOKUP("Comprobación sistema",Translations!$A$4:$E$209,MATCH('System Calculation'!$J$7,Translations!$A$1:$E$1,0),FALSE) -> System check | P9: =VLOOKUP("Trama comunicaciones",Translations!$A$4:$E$209,MATCH('System Calculation'!$J$7,Translations!$A$1:$E$1,0),FALSE) -> Communication frame | R9: 26
A10: =VLOOKUP("Sección de cable",Translations!$A$4:$E$209,MATCH('System Calculation'!$J$7,Translations!$A$1:$E$1,0),FALSE) -> Cable cross section | C10: =IFERROR(VLOOKUP($B$10,Data!$H$17:$I$23,2,FALSE),"ERROR") -> ERROR | I10: =IF(B11>3500,VLOOKUP("Error: La longitud máxima de lazo es 3500 m",Translations!$A$4:$E$209,MATCH('System Calculation'!$J$7,Translations!$A$1:$E$1,0),FALSE),"") ->  | L10: =VLOOKUP("Corriente",Translations!$A$4:$E$209,MATCH('System Calculation'!$J$7,Translations!$A$1:$E$1,0),FALSE) -> Consumption | N10: =IFERROR(IF($B$85>0.75,VLOOKUP("FALLO",Translations!$A$4:$E$209,MATCH('System Calculation'!$J$7,Translations!$A$1:$E$1,0),FALSE),IF($B$107>=$B$85,"OK","FALLO")),VLOOKUP("ERROR",Translations!$A$4:$E$209,MATCH('System Calculation'!$J$7,Translations!$A$1:$E$1,0),FALSE)) -> OK | P10: =IFERROR(IF($B$85>0.75,VLOOKUP("Error: La corriente de lazo es mayor que la corriente máxima permitida",Translations!$A$4:$E$209,MATCH('System Calculation'!$J$7,Translations!$A$1:$E$1,0),FALSE),IF($B$107<$B$85,VLOOKUP("Error: La corriente de lazo es mayor que la corriente máxima permitida",Translations!$A$4:$E$209,MATCH('System Calculation'!$J$7,Translations!$A$1:$E$1,0),FALSE),"")),VLOOKUP("ERROR: Los datos no son correctos",Translations!$A$4:$E$209,MATCH('System Calculation'!$J$7,Translations!$A$1:$E$1,0),FALSE)) -> 
A11: =VLOOKUP("Longitud de lazo",Translations!$A$4:$E$209,MATCH('System Calculation'!$J$7,Translations!$A$1:$E$1,0),FALSE) -> Loop length | C11: =VLOOKUP("metros",Translations!$A$4:$E$209,MATCH('System Calculation'!$J$7,Translations!$A$1:$E$1,0),FALSE) -> meters | L11: =VLOOKUP("Direcciones",Translations!$A$4:$E$209,MATCH('System Calculation'!$J$7,Translations!$A$1:$E$1,0),FALSE) -> Directions | N11: =IF($N$77<=250,VLOOKUP("OK",Translations!$A$4:$E$209,MATCH('System Calculation'!$J$7,Translations!$A$1:$E$1,0),FALSE),VLOOKUP("FALLO",Translations!$A$4:$E$209,MATCH('System Calculation'!$J$7,Translations!$A$1:$E$1,0),FALSE)) -> OK | P11: =IF($N$77>250,VLOOKUP("Error: El lazo no admite más de 250 direcciones",Translations!$A$4:$E$209,MATCH('System Calculation'!$J$7,Translations!$A$1:$E$1,0),FALSE),"") ->  | Z11: =VLOOKUP("Información",Translations!$A$4:$E$209,MATCH('System Calculation'!$J$7,Translations!$A$1:$E$1,0),FALSE) -> Information
A12: =VLOOKUP("Distancia de S al primer dispositivo",Translations!$A$4:$E$209,MATCH('System Calculation'!$J$7,Translations!$A$1:$E$1,0),FALSE) -> Distance from S to first device | C12: =VLOOKUP("metros",Translations!$A$4:$E$209,MATCH('System Calculation'!$J$7,Translations!$A$1:$E$1,0),FALSE) -> meters | D12: =IF(B12+B13>B11,VLOOKUP("La suma de distancias desde la central a los dipositivos no puede ser mayor a la longitud de lazo",Translations!$A$4:$E$209,MATCH('System Calculation'!$J$7,Translations!$A$1:$E$1,0),FALSE)," ") ->  | P12: =IFERROR(IF(P13<>"",VLOOKUP("Indicaciones",Translations!$A$4:$E$209,MATCH('System Calculation'!$J$7,Translations!$A$1:$E$1,0),FALSE),""),VLOOKUP("Indicaciones",Translations!$A$4:$E$209,MATCH('System Calculation'!$J$7,Translations!$A$1:$E$1,0),FALSE)) ->  | Z12: =VLOOKUP("Esta es la distancia de la salida del lazo hasta el primer dispositivo",Translations!$A$4:$E$209,MATCH('System Calculation'!$J$7,Translations!$A$1:$E$1,0),FALSE) -> This is the distance from the S of the loop to the first device
A13: =VLOOKUP("Distancia de R al último dispositivo",Translations!$A$4:$E$209,MATCH('System Calculation'!$J$7,Translations!$A$1:$E$1,0),FALSE) -> Distance from R to last device | C13: =VLOOKUP("metros",Translations!$A$4:$E$209,MATCH('System Calculation'!$J$7,Translations!$A$1:$E$1,0),FALSE) -> meters | P13: =IFERROR(IF($N$77>250,VLOOKUP("Reduzca el número de direcciones utilizadas",Translations!$A$4:$E$209,MATCH('System Calculation'!$J$7,Translations!$A$1:$E$1,0),FALSE),IF($B$85>0.75,VLOOKUP("Trate de reducir el consumo ajustando la cantidad de dispositivos",Translations!$A$4:$E$209,MATCH('System Calculation'!$J$7,Translations!$A$1:$E$1,0),FALSE),IF($B$107<$B$85,VLOOKUP("Trate de modificar los parámetros de cable y lazo",Translations!$A$4:$E$209,MATCH('System Calculation'!$J$7,Translations!$A$1:$E$1,0),FALSE),""))),VLOOKUP("Revise o rellene los datos de configuración de lazo",Translations!$A$4:$E$209,MATCH('System Calculation'!$J$7,Translations!$A$1:$E$1,0),FALSE)) ->  | Z13: =VLOOKUP("Esta es la distancia del último dispositivo al retorno del lazo",Translations!$A$4:$E$209,MATCH('System Calculation'!$J$7,Translations!$A$1:$E$1,0),FALSE) -> This is the distance from the last device to the R of the loop
A14: =VLOOKUP("Topología de lazo",Translations!$A$4:$E$209,MATCH('System Calculation'!$J$7,Translations!$A$1:$E$1,0),FALSE) -> Loop topology | C14: =IFERROR(VLOOKUP(B14,Data!$D$45:$E$46,2,FALSE),"ERROR") -> ERROR | E14: =IF($B$14=Data!D46,VLOOKUP("Lazo abierto. Toda la corriente en el mismo extremo del cable (peor caso)",Translations!$A$4:$E$209,MATCH('System Calculation'!$J$7,Translations!$A$1:$E$1,0),FALSE),VLOOKUP("Lazo cerrado. Se divide la corriente por los dos extremos (mejor caso)",Translations!$A$4:$E$209,MATCH('System Calculation'!$J$7,Translations!$A$1:$E$1,0),FALSE)) -> Closed loop. The current is divided on both ends (best case) | Z14: =VLOOKUP("La topología de lazo hace referencia",Translations!$A$4:$E$209,MATCH('System Calculation'!$J$7,Translations!$A$1:$E$1,0),FALSE) -> Loop topology takes into account whether the loop is closed in Class A, or the loop is in degraded mode due to an open loop fault
A15: =VLOOKUP("Factor de distribución",Translations!$A$4:$E$209,MATCH('System Calculation'!$J$7,Translations!$A$1:$E$1,0),FALSE) -> Distribution factor | B15: 1 | C15: =VLOOKUP(B15,Data!$A$21:$B$49,2,FALSE) -> 0.57 | E15: =IF($B$15=1,VLOOKUP("Distribuidos equitativamente (mejor caso)",Translations!$A$4:$E$209,MATCH('System Calculation'!$J$7,Translations!$A$1:$E$1,0),FALSE),IF($B$15=0,VLOOKUP("Todos en el mismo extremo del cable (peor caso)",Translations!$A$4:$E$209,MATCH('System Calculation'!$J$7,Translations!$A$1:$E$1,0),FALSE),VLOOKUP("Caso intermedio",Translations!$A$4:$E$209,MATCH('System Calculation'!$J$7,Translations!$A$1:$E$1,0),FALSE))) -> Equally distributed (best case) | Z15: =VLOOKUP("El factor de distribución hace referencia",Translations!$A$4:$E$209,MATCH('System Calculation'!$J$7,Translations!$A$1:$E$1,0),FALSE) -> Distribution factor is an estimation of how equitative are the devices distributed along the loop, being 100% perfectly distributed
C17: =VLOOKUP("Cumplimentar el campo PCS para la configuración deseada (campo amarillo)",Translations!$A$4:$E$209,MATCH('System Calculation'!$J$7,Translations!$A$1:$E$1,0),FALSE) -> Fill the PCS field for the desired configuration
A18: =VLOOKUP("Dispositivos lazo 2",Translations!$A$4:$E$209,MATCH('System Calculation'!$J$7,Translations!$A$1:$E$1,0),FALSE) -> Loop 2 devices
A19: =VLOOKUP("REF.",Translations!$A$4:$E$209,MATCH('System Calculation'!$J$7,Translations!$A$1:$E$1,0),FALSE) -> REF. | B19: =VLOOKUP("Descripción",Translations!$A$4:$E$209,MATCH('System Calculation'!$J$7,Translations!$A$1:$E$1,0),FALSE) -> Description | C19: =VLOOKUP("PCS",Translations!$A$4:$E$209,MATCH('System Calculation'!$J$7,Translations!$A$1:$E$1,0),FALSE) -> PCS | D19: I_Standby (A) | E19: =VLOOKUP("I_Reposo (A)",Translations!$A$4:$E$209,MATCH('System Calculation'!$J$7,Translations!$A$1:$E$1,0),FALSE) -> I_Standby (A) | F19: PCS_alarm | G19: I_Alarm (A) | H19: I_Alarm_aux (A) | I19: =VLOOKUP("I_Alarma (A)",Translations!$A$4:$E$209,MATCH('System Calculation'!$J$7,Translations!$A$1:$E$1,0),FALSE) -> I_Alarm (A) | J19: =VLOOKUP("I_Sirenas (A)",Translations!$A$4:$E$209,MATCH('System Calculation'!$J$7,Translations!$A$1:$E$1,0),FALSE) -> I_Sounders (A) | K19: =VLOOKUP("DET",Translations!$A$4:$E$209,MATCH('System Calculation'!$J$7,Translations!$A$1:$E$1,0),FALSE) -> DET | L19: =VLOOKUP("MOD",Translations!$A$4:$E$209,MATCH('System Calculation'!$J$7,Translations!$A$1:$E$1,0),FALSE) -> MOD | M19: =VLOOKUP("SIR",Translations!$A$4:$E$209,MATCH('System Calculation'!$J$7,Translations!$A$1:$E$1,0),FALSE) -> SND | N19: =VLOOKUP("DIR",Translations!$A$4:$E$209,MATCH('System Calculation'!$J$7,Translations!$A$1:$E$1,0),FALSE) -> DIR
A20: DOD-220A | B20: =VLOOKUP("Detector óptico analógico",Translations!$A$4:$E$209,MATCH('System Calculation'!$J$7,Translations!$A$1:$E$1,0),FALSE) -> Addressable optical smoke detector | D20: =127.2*10^-6 -> 0.0001272 | E20: =C20*D20 -> 0 | F20: =IFERROR(INDEX($AE$22:$AE$37,MATCH(H20,$AB$22:$AB$37,0)),0) -> 0 | G20: =3.61*10^-3 -> 0.00361 | H20: =IF(C20>0,G20+ROW(G20)/100000000000,0) -> 0 | I20: =IF(F20>0,F20*G20+(C20-F20)*D20,C20*D20) -> 0 | K20: =IF(C20<>0,C20," ") ->  | N20: =IF(K20<>0,K20," ") ->  | AA20: * Si no quiero que algún dispositivo esté aquí, poner a 0 su valor en columna H
A21: DOD-220A-I | B21: =VLOOKUP("Detector óptico analógico con aislador incorporado",Translations!$A$4:$E$209,MATCH('System Calculation'!$J$7,Translations!$A$1:$E$1,0),FALSE) -> Addressable optical smoke detector with built-in isolator | D21: =195.8*10^-6 -> 0.0001958 | E21: =C21*D21 -> 0 | F21: 0 | G21: =3.74*10^-3 -> 0.00374 | H21: =IF(C21>0,G21+ROW(G21)/100000000000,0) -> 0 | I21: =IF(F21>0,F21*G21+(C21-F21)*D21,C21*D21) -> 0 | N21: =IF(K21<>0,K21," ") ->  | AA21: Orden | AB21: Valor | AC21: PCS | AD21: Cuantos quedan para 16 | AE21: PCS alarma
A22: DOTD-230A | B22: =VLOOKUP("Detector óptico-térmico",Translations!$A$4:$E$209,MATCH('System Calculation'!$J$7,Translations!$A$1:$E$1,0),FALSE) -> Addressable optical & heat detector | D22: =141.6*10^-6 -> 0.0001416 | E22: =C22*D22 -> 0 | F22: 0 | G22: =3.6*10^-3 -> 0.0036 | H22: 0 | I22: 0 | N22: =IF(K22<>0,K22," ") ->  | AA22: 1 | AB22: =LARGE($H$20:$H$53,AA22) -> 0 | AC22: =INDEX(C:C,MATCH(AB22,H:H,0)) -> 0 | AD22: =IF(16-AC22>0,16-AC22,0) -> 16 | AE22: =IF(AD22>0,AC22,16) -> 0
A23: DOTD-230A-I | B23: =VLOOKUP("Detector óptico-térmico con aislador incorporado",Translations!$A$4:$E$209,MATCH('System Calculation'!$J$7,Translations!$A$1:$E$1,0),FALSE) -> Addressable optical & heat detector with built-in isolator | D23: =212.4*10^-6 -> 0.0002124 | E23: 0 | F23: 0 | G23: =3.74*10^-3 -> 0.00374 | H23: 0 | I23: 0 | AA23: 2 | AB23: 0 | AC23: 0 | AD23: =IF(AD22-AC23>0,AD22-AC23,0) -> 16 | AE23: =IF(AD23>0,AC23,AD22) -> 0
A24: DTD-210A | B24: =VLOOKUP("Detector térmico analógico",Translations!$A$4:$E$209,MATCH('System Calculation'!$J$7,Translations!$A$1:$E$1,0),FALSE) -> Addressable heat detector | D24: =122.2*10^-6 -> 0.0001222 | E24: 0 | F24: 0 | G24: =3.64*10^-3 -> 0.00364 | H24: 0 | I24: 0 | AA24: 3 | AB24: 0 | AC24: 0 | AD24: =IF(AD23-AC24>0,AD23-AC24,0) -> 16 | AE24: =IF(AD24>0,AC24,AD23) -> 0
A25: DTD-210A-I | B25: =VLOOKUP("Detector térmico analógico con aislador incorporado",Translations!$A$4:$E$209,MATCH('System Calculation'!$J$7,Translations!$A$1:$E$1,0),FALSE) -> Addressable heat detector with built-in isolator | D25: =192.4*10^-6 -> 0.0001924 | E25: 0 | F25: 0 | G25: =3.76*10^-3 -> 0.00376 | H25: 0 | I25: 0 | AA25: 4 | AB25: 0 | AC25: 0 | AD25: 16 | AE25: 0
A26: DTD-215A | B26: =VLOOKUP("Detector térmico de alta temperatura analógico",Translations!$A$4:$E$209,MATCH('System Calculation'!$J$7,Translations!$A$1:$E$1,0),FALSE) -> Addressable high temperature detector | D26: =133.7*10^-6 -> 0.0001337 | E26: 0 | F26: 0 | G26: =3.78*10^-3 -> 0.00378 | H26: 0 | I26: 0 | AA26: 5 | AB26: 0 | AC26: 0 | AD26: 16 | AE26: 0
A27: DTD-215A-I | B27: =VLOOKUP("Detector térmico de alta temperatura analógico con aislador incorporado",Translations!$A$4:$E$209,MATCH('System Calculation'!$J$7,Translations!$A$1:$E$1,0),FALSE) -> Addressable high temperature detector with built-in isolator | D27: =203.5*10^-6 -> 0.0002035 | E27: 0 | F27: 0 | G27: =3.77*10^-3 -> 0.00377 | H27: 0 | I27: 0 | AA27: 6 | AB27: 0 | AC27: 0 | AD27: 16 | AE27: 0
A28: DGD-600 | B28: =VLOOKUP("Detector autónomo de gas natural (24V)",Translations!$A$4:$E$209,MATCH('System Calculation'!$J$7,Translations!$A$1:$E$1,0),FALSE) -> Standalone natural gas detector (24V) | D28: =2180*10^-6 -> 0.00218 | E28: 0 | F28: 0 | G28: =2.22*10^-3 -> 0.00222 | H28: 0 | I28: 0 | AA28: 7 | AB28: 0 | AC28: 0 | AD28: 16 | AE28: 0
A29: DGD-600-AC | B29: =VLOOKUP("Detector autónomo de gas natural (230V)",Translations!$A$4:$E$209,MATCH('System Calculation'!$J$7,Translations!$A$1:$E$1,0),FALSE) -> Standalone natural gas detector (230V) | D29: =2600*10^-6 -> 0.0026 | E29: 0 | F29: 0 | G29: =3.16*10^-3 -> 0.00316 | H29: 0 | I29: 0 | AA29: 8 | AB29: 0 | AC29: 0 | AD29: 16 | AE29: 0
A30: DGD-620 | B30: =VLOOKUP("Detector autónomo de GLP (24V)",Translations!$A$4:$E$209,MATCH('System Calculation'!$J$7,Translations!$A$1:$E$1,0),FALSE) -> Standalone LPG detector (24V) | D30: =2180*10^-6 -> 0.00218 | E30: 0 | F30: 0 | G30: =2.22*10^-3 -> 0.00222 | H30: 0 | I30: 0 | AA30: 9 | AB30: 0 | AC30: 0 | AD30: 16 | AE30: 0
A31: DGD-620-AC | B31: =VLOOKUP("Detector autónomo de GLP (230V)",Translations!$A$4:$E$209,MATCH('System Calculation'!$J$7,Translations!$A$1:$E$1,0),FALSE) -> Standalone LPG detector (230V) | D31: =2600*10^-6 -> 0.0026 | E31: 0 | F31: 0 | G31: =3.16*10^-3 -> 0.00316 | H31: 0 | I31: 0 | AA31: 10 | AB31: 0 | AC31: 0 | AD31: 16 | AE31: 0
A32: DBD-70A | B32: =VLOOKUP("Detector lineal de humos analógico",Translations!$A$4:$E$209,MATCH('System Calculation'!$J$7,Translations!$A$1:$E$1,0),FALSE) -> Addressable beam smoke detector | D32: 0.004 | E32: 0 | F32: =C32 -> 0 | G32: 0.004 | H32: =0 -> 0 | I32: =IF(F32>0,F32*G32+(C32-F32)*D32,C32*D32) -> 0 | P32: =IF(C32>20,VLOOKUP("Info: El máximo número de barreras es 20",Translations!$A$4:$E$209,MATCH('System Calculation'!$J$7,Translations!$A$1:$E$1,0),FALSE),IF(C32>0,VLOOKUP("Info: Alinear barreras de una en una",Translations!$A$4:$E$209,MATCH('System Calculation'!$J$7,Translations!$A$1:$E$1,0),FALSE)," ")) ->  | AA32: 11 | AB32: 0 | AC32: 0 | AD32: 16 | AE32: 0
A33: MAD-401 & MAD-401-I | B33: =VLOOKUP("Módulo analógico de 1 entrada (sin/con aislador)",Translations!$A$4:$E$209,MATCH('System Calculation'!$J$7,Translations!$A$1:$E$1,0),FALSE) -> Addressable module 1 input (with/without isolator) | D33: =216.8*10^-6 -> 0.0002168 | E33: 0 | F33: =IFERROR(INDEX($AE$22:$AE$37,MATCH(H33,$AB$22:$AB$37,0)),0) -> 0 | G33: =3.06*10^-3 -> 0.00306 | H33: 0 | I33: 0 | L33: =IF(C33<>0,C33," ") ->  | N33: =IF(L33<>0,L33," ") ->  | AA33: 12 | AB33: 0 | AC33: 0 | AD33: 16 | AE33: 0
A34: MAD-402 & MAD-402-I | B34: =VLOOKUP("Módulo analógico de 2 entradas (sin/con aislador)",Translations!$A$4:$E$209,MATCH('System Calculation'!$J$7,Translations!$A$1:$E$1,0),FALSE) -> Addressable module 2 inputs (with/without isolator) | D34: =217.4*10^-6 -> 0.0002174 | E34: =C34*D34 -> 0 | F34: 0 | G34: =5.95*10^-3 -> 0.00595 | H34: 0 | I34: 0 | L34: =IF(C34<>0,C34,0) -> 0 | N34: =IF(L34<>0,L34*2," ") ->  | AA34: 13 | AB34: 0 | AC34: 0 | AD34: 16 | AE34: 0
A35: MAD-405-I | B35: =VLOOKUP("Módulo analógico de 5 entradas con aislador",Translations!$A$4:$E$209,MATCH('System Calculation'!$J$7,Translations!$A$1:$E$1,0),FALSE) -> Addressable module 5 inputs with isolator | D35: =278.6*10^-6 -> 0.0002786 | E35: 0 | F35: 0 | G35: =3.15*10^-3 -> 0.00315 | H35: 0 | I35: 0 | L35: =IF(C35<>0,C35,0) -> 0 | N35: =IF(L35<>0,L35*5," ") ->  | AA35: 14 | AB35: 0 | AC35: 0 | AD35: 16 | AE35: 0
A36: MAD-409-I | B36: =VLOOKUP("Módulo analógico de 10 entradas con aislador",Translations!$A$4:$E$209,MATCH('System Calculation'!$J$7,Translations!$A$1:$E$1,0),FALSE) -> Addressable module 10 inputs with isolator | D36: =367.7*10^-6 -> 0.0003677 | E36: 0 | F36: 0 | G36: =3.3*10^-3 -> 0.0033 | H36: 0 | I36: 0 | L36: =IF(C36<>0,C36,0) -> 0 | N36: =IF(L36<>0,L36*10," ") ->  | AA36: 15 | AB36: 0 | AC36: 0 | AD36: 16 | AE36: 0
A37: MAD-411 & MAD-411-I | B37: =VLOOKUP("Módulo analógico de 1 salida (sin/con aislador)",Translations!$A$4:$E$209,MATCH('System Calculation'!$J$7,Translations!$A$1:$E$1,0),FALSE) -> Addressable module 1 output (with/without isolator) | D37: =191.6*10^-6 -> 0.0001916 | E37: 0 | F37: 0 | G37: =3.06*10^-3 -> 0.00306 | H37: 0 | I37: 0 | L37: =IF(C37<>0,C37," ") ->  | N37: =IF(L37<>0,L37," ") ->  | AA37: 16 | AB37: 0 | AC37: 0 | AD37: 16 | AE37: 0
A38: MAD-412 & MAD-412-I | B38: =VLOOKUP("Módulo analógico de 2 salidas (sin/con aislador)",Translations!$A$4:$E$209,MATCH('System Calculation'!$J$7,Translations!$A$1:$E$1,0),FALSE) -> Addressable module 2 outputs (with/without isolator) | D38: =191*10^-6 -> 0.000191 | E38: 0 | F38: 0 | G38: =5.84*10^-3 -> 0.00584 | H38: 0 | I38: 0 | L38: =IF(C38<>0,C38,0) -> 0 | N38: =IF(L38<>0,L38*2," ") ->  | AA38: Total | AC38: =SUM(AC22:AC37) -> 0 | AE38: =SUM(AE22:AE37) -> 0
A39: MAD-415-I | B39: =VLOOKUP("Módulo analógico de 5 salidas con aislador",Translations!$A$4:$E$209,MATCH('System Calculation'!$J$7,Translations!$A$1:$E$1,0),FALSE) -> Addressable module 5 outputs with isolator | D39: =188.8*10^-6 -> 0.0001888 | E39: 0 | F39: 0 | G39: =3.95*10^-3 -> 0.00395 | H39: 0 | I39: 0 | L39: 0 | N39: =IF(L39<>0,L39*5," ") ->  | P39: =IF(AND(C39>0),VLOOKUP("Info: Fuente externa 24V necesaria. La central puede dar 24Vaux, si la corriente máxima 500mA no es excedida.",Translations!$A$4:$E$209,MATCH('System Calculation'!$J$7,Translations!$A$1:$E$1,0),FALSE)," ") -> 
A40: MAD-419-I | B40: =VLOOKUP("Módulo analógico de 10 salidas con aislador",Translations!$A$4:$E$209,MATCH('System Calculation'!$J$7,Translations!$A$1:$E$1,0),FALSE) -> Addressable module 10 outputs with isolator | D40: =189.2*10^-6 -> 0.0001892 | E40: 0 | F40: 0 | G40: =4.84*10^-3 -> 0.00484 | H40: 0 | I40: 0 | L40: 0 | N40: =IF(L40<>0,L40*10," ") ->  | P40: =IF(AND(C40>0),VLOOKUP("Info: Fuente externa 24V necesaria. La central puede dar 24Vaux, si la corriente máxima 500mA no es excedida.",Translations!$A$4:$E$209,MATCH('System Calculation'!$J$7,Translations!$A$1:$E$1,0),FALSE)," ") -> 
A41: MAD-421 & MAD-421-I | B41: =VLOOKUP("Módulo analógico de 1 entrada/1 salida (sin/con aislador)",Translations!$A$4:$E$209,MATCH('System Calculation'!$J$7,Translations!$A$1:$E$1,0),FALSE) -> Addressable module 1 input/1 output (with/without isolator) | D41: =210.1*10^-6 -> 0.0002101 | E41: 0 | F41: 0 | G41: =5.92*10^-3 -> 0.00592 | H41: 0 | I41: 0 | L41: 0 | N41: =IF(L41<>0,L41*2," ") -> 
A42: MAD-422 & MAD-422-I | B42: =VLOOKUP("Módulo analógico de 2 entradas/2 salidas (sin/con aislador)",Translations!$A$4:$E$209,MATCH('System Calculation'!$J$7,Translations!$A$1:$E$1,0),FALSE) -> Addressable module 2 inputs/2 outputs (with/without isolator) | D42: =234*10^-6 -> 0.000234 | E42: 0 | F42: 0 | G42: =5.91*10^-3 -> 0.00591 | H42: 0 | I42: 0 | L42: 0 | N42: =IF(L42<>0,L42*4," ") -> 
A43: MAD-425-I | B43: =VLOOKUP("Módulo analógico de 5 entradas/5 salidas con aislador",Translations!$A$4:$E$209,MATCH('System Calculation'!$J$7,Translations!$A$1:$E$1,0),FALSE) -> Addressable module 5 inputs/5 outputs with isolator | D43: =284*10^-6 -> 0.000284 | E43: 0 | F43: 0 | G43: =4.08*10^-3 -> 0.00408 | H43: 0 | I43: 0 | L43: 0 | N43: =IF(L43<>0,L43*10," ") ->  | P43: =IF(AND(C43>0),VLOOKUP("Info: Fuente externa 24V necesaria. La central puede dar 24Vaux, si la corriente máxima 500mA no es excedida.",Translations!$A$4:$E$209,MATCH('System Calculation'!$J$7,Translations!$A$1:$E$1,0),FALSE)," ") -> 
A44: MAD-429-I | B44: =VLOOKUP("Módulo analógico de 10 entradas/10 salidas con aislador",Translations!$A$4:$E$209,MATCH('System Calculation'!$J$7,Translations!$A$1:$E$1,0),FALSE) -> Addressable module 10 inputs/10 outputs with isolator | D44: =376.6*10^-6 -> 0.0003766 | E44: 0 | F44: 0 | G44: =5*10^-3 -> 0.005 | H44: 0 | I44: 0 | L44: 0 | N44: =IF(L44<>0,L44*20," ") ->  | P44: =IF(AND(C44>0),VLOOKUP("Info: Fuente externa 24V necesaria. La central puede dar 24Vaux, si la corriente máxima 500mA no es excedida.",Translations!$A$4:$E$209,MATCH('System Calculation'!$J$7,Translations!$A$1:$E$1,0),FALSE)," ") -> 
A45: MAD-431 & MAD-431-I | B45: =VLOOKUP("Módulo analógico de 1 salida 24V (sin/con aislador)",Translations!$A$4:$E$209,MATCH('System Calculation'!$J$7,Translations!$A$1:$E$1,0),FALSE) -> Addressable module 1 24V output (with/without isolator) | D45: =215*10^-6 -> 0.000215 | E45: 0 | F45: 0 | G45: =3.61*10^-3 -> 0.00361 | H45: 0 | I45: 0 | L45: 0 | N45: =IF(L45<>0,L45," ") ->  | P45: =IF(AND(C45>0),VLOOKUP("Info: Fuente externa 24V necesaria. La central puede dar 24Vaux, si la corriente máxima 500mA no es excedida.",Translations!$A$4:$E$209,MATCH('System Calculation'!$J$7,Translations!$A$1:$E$1,0),FALSE)," ") -> 
A46: MAD-432 & MAD-432-I | B46: =VLOOKUP("Módulo analógico de 2 salidas 24V (sin/con aislador)",Translations!$A$4:$E$209,MATCH('System Calculation'!$J$7,Translations!$A$1:$E$1,0),FALSE) -> Addressable module 2 24V outputs (with/without isolator) | D46: =203.3*10^-6 -> 0.0002033 | E46: 0 | F46: 0 | G46: =6.8*10^-3 -> 0.0068 | H46: 0 | I46: 0 | L46: 0 | N46: =IF(L46<>0,L46*2," ") ->  | P46: =IF(AND(C46>0),VLOOKUP("Info: Fuente externa 24V necesaria. La central puede dar 24Vaux, si la corriente máxima 500mA no es excedida.",Translations!$A$4:$E$209,MATCH('System Calculation'!$J$7,Translations!$A$1:$E$1,0),FALSE)," ") -> 
A47: MAD-441 & MAD-441-I | B47: =VLOOKUP("Módulo analógico de 1 zona convencional (sin/con aislador)",Translations!$A$4:$E$209,MATCH('System Calculation'!$J$7,Translations!$A$1:$E$1,0),FALSE) -> Addressable module 1 conventional zone (with/without isolator) | D47: =187.8*10^-6 -> 0.0001878 | E47: 0 | F47: 0 | G47: =3.04*10^-3 -> 0.00304 | H47: 0 | I47: 0 | L47: 0 | N47: =IF(L47<>0,L47," ") ->  | P47: =IF(AND(C47>0),VLOOKUP("Info: Fuente externa 24V necesaria. La central puede dar 24Vaux, si la corriente máxima 500mA no es excedida.",Translations!$A$4:$E$209,MATCH('System Calculation'!$J$7,Translations!$A$1:$E$1,0),FALSE)," ") -> 
A48: MAD-442 & MAD-442-I | B48: =VLOOKUP("Módulo analógico de 2 zonas convencionales (sin/con aislador)",Translations!$A$4:$E$209,MATCH('System Calculation'!$J$7,Translations!$A$1:$E$1,0),FALSE) -> Addressable module 2 conventional zones (with/without isolator) | D48: =187.8*10^-6 -> 0.0001878 | E48: 0 | F48: 0 | G48: =5.84*10^-3 -> 0.00584 | H48: 0 | I48: 0 | L48: 0 | N48: =IF(L48<>0,L48*2," ") ->  | P48: =IF(AND(C48>0),VLOOKUP("Info: Fuente externa 24V necesaria. La central puede dar 24Vaux, si la corriente máxima 500mA no es excedida.",Translations!$A$4:$E$209,MATCH('System Calculation'!$J$7,Translations!$A$1:$E$1,0),FALSE)," ") -> 
A49: MAD-481 | B49: =VLOOKUP("Módulo analógico de 1 salida 230V",Translations!$A$4:$E$209,MATCH('System Calculation'!$J$7,Translations!$A$1:$E$1,0),FALSE) -> Addressable module 1 230V output | D49: 0.0001176 | E49: 0 | F49: 0 | G49: 0.00288 | H49: 0 | I49: 0 | L49: 0 | N49: =IF(L49<>0,L49," ") -> 
A50: MAD-490 | B50: =VLOOKUP("Módulo analógico aislador",Translations!$A$4:$E$209,MATCH('System Calculation'!$J$7,Translations!$A$1:$E$1,0),FALSE) -> Addressable module isolator | D50: =69.6*10^-6 -> 6.96e-05 | E50: 0 | F50: 0 | G50: =37.66*10^-3 -> 0.03766 | H50: 0 | I50: 0 | L50: 0 | N50: =IF(L50<>0,L50," ") -> 
A51: MAD-450 & MAD-450-I | B51: =VLOOKUP("Pulsador analógico con aislador",Translations!$A$4:$E$209,MATCH('System Calculation'!$J$7,Translations!$A$1:$E$1,0),FALSE) -> Addressable manual call with isolator | D51: =176.6*10^-6 -> 0.0001766 | E51: 0 | F51: 0 | G51: =3.03*10^-3 -> 0.00303 | H51: 0 | I51: 0 | L51: 0 | N51: =IF(C51<>0,C51," ") -> 
A52: MAD-451-I | B52: =VLOOKUP("Pulsador analógico con aislador",Translations!$A$4:$E$209,MATCH('System Calculation'!$J$7,Translations!$A$1:$E$1,0),FALSE) -> Addressable manual call with isolator | D52: =177.4*10^-6 -> 0.0001774 | E52: 0 | F52: 0 | G52: =3*10^-3 -> 0.003 | H52: 0 | I52: 0 | L52: 0 | N52: =IF(C52<>0,C52," ") -> 
A53: MAD-452 & MAD-452-I | B53: =VLOOKUP("Pulsador analógico con aislador",Translations!$A$4:$E$209,MATCH('System Calculation'!$J$7,Translations!$A$1:$E$1,0),FALSE) -> Addressable manual call with isolator | D53: 0.000341 | E53: 0 | F53: 0 | G53: 0.00181 | H53: 0 | I53: 0 | L53: 0 | N53: =IF(C53<>0,C53," ") -> 
A54: MAD-461-I | B54: =VLOOKUP("Sirena analógica con aislador",Translations!$A$4:$E$209,MATCH('System Calculation'!$J$7,Translations!$A$1:$E$1,0),FALSE) -> Addressable sounder with isolator | D54: =176.9*10^-6 -> 0.0001769 | E54: 0 | F54: =C54*'System Calculation'!$I$11 -> 0 | G54: =8.35*10^-3 -> 0.00835 | H54: 0 | I54: =IF(F54>0,F54*G54+(C54-F54)*D54,C54*D54) -> 0 | J54: =IF(C54*I54=0," ",I54) ->  | M54: =IF(C54<>0,C54," ") ->  | N54: =IF(M54<>0,M54," ") -> 
A55: MAD-464-I | B55: =VLOOKUP("Sirena analógica con aislador",Translations!$A$4:$E$209,MATCH('System Calculation'!$J$7,Translations!$A$1:$E$1,0),FALSE) -> Addressable sounder with isolator | D55: =176.5*10^-6 -> 0.0001765 | E55: 0 | F55: =C55*'System Calculation'!$I$11 -> 0 | G55: =12.32*10^-3 -> 0.01232 | H55: 0 | I55: 0 | N55: =IF(M55<>0,M55," ") -> 
A56: MAD-465-I | B56: =VLOOKUP("Sirena analógica con flash y aislador",Translations!$A$4:$E$209,MATCH('System Calculation'!$J$7,Translations!$A$1:$E$1,0),FALSE) -> Addressable sounder with beacon and isolator | D56: =177.3*10^-6 -> 0.0001773 | E56: 0 | F56: =C56*'System Calculation'!$I$11 -> 0 | G56: 0.01232 | H56: 0 | I56: 0
A57: =VLOOKUP("MAD-564-I (lazo)",Translations!$A$4:$E$209,MATCH('System Calculation'!$J$7,Translations!$A$1:$E$1,0),FALSE) -> MAD-564-I (loop) | B57: =VLOOKUP("Sirena analógica con aislador",Translations!$A$4:$E$209,MATCH('System Calculation'!$J$7,Translations!$A$1:$E$1,0),FALSE) -> Addressable sounder with isolator | D57: =1580*10^-6 -> 0.00158 | E57: 0 | F57: =C57*'System Calculation'!$I$11 -> 0 | G57: =21.11*10^-3 -> 0.02111 | H57: 0 | I57: 0
A58: =VLOOKUP("MAD-564-I (FA externa)",Translations!$A$4:$E$209,MATCH('System Calculation'!$J$7,Translations!$A$1:$E$1,0),FALSE) -> MAD-564-I (external PS) | B58: =VLOOKUP("Sirena analógica con aislador",Translations!$A$4:$E$209,MATCH('System Calculation'!$J$7,Translations!$A$1:$E$1,0),FALSE) -> Addressable sounder with isolator | D58: =350*10^-6 -> 0.00035 | E58: 0 | F58: =C58*'System Calculation'!$I$11 -> 0 | G58: =0.8*10^-3 -> 0.0008 | H58: 0 | I58: 0 | P58: =IF(AND(C58>0),VLOOKUP("Info: Fuente externa 24V necesaria. Certificada EN 54-4",Translations!$A$4:$E$209,MATCH('System Calculation'!$J$7,Translations!$A$1:$E$1,0),FALSE)," ") -> 
A59: =VLOOKUP("MAD-565-I (lazo)",Translations!$A$4:$E$209,MATCH('System Calculation'!$J$7,Translations!$A$1:$E$1,0),FALSE) -> MAD-565-I (loop) | B59: =VLOOKUP("Sirena analógica con VAD y aislador",Translations!$A$4:$E$209,MATCH('System Calculation'!$J$7,Translations!$A$1:$E$1,0),FALSE) -> Addressable sounder with VAD and isolator | D59: =1580*10^-6 -> 0.00158 | E59: 0 | F59: =C59*'System Calculation'!$I$11 -> 0 | G59: =33.45*10^-3 -> 0.03345 | H59: 0 | I59: 0
A60: =VLOOKUP("MAD-565-I (FA externa)",Translations!$A$4:$E$209,MATCH('System Calculation'!$J$7,Translations!$A$1:$E$1,0),FALSE) -> MAD-565-I (external PS) | B60: =VLOOKUP("Sirena analógica con VAD y aislador",Translations!$A$4:$E$209,MATCH('System Calculation'!$J$7,Translations!$A$1:$E$1,0),FALSE) -> Addressable sounder with VAD and isolator | D60: =350*10^-6 -> 0.00035 | E60: 0 | F60: =C60*'System Calculation'!$I$11 -> 0 | G60: =0.8*10^-3 -> 0.0008 | H60: 0 | I60: 0 | P60: =IF(AND(C60>0),VLOOKUP("Info: Fuente externa 24V necesaria. Certificada EN 54-4",Translations!$A$4:$E$209,MATCH('System Calculation'!$J$7,Translations!$A$1:$E$1,0),FALSE)," ") -> 
A61: =VLOOKUP("MAD-565-I - solo flash (lazo)",Translations!$A$4:$E$209,MATCH('System Calculation'!$J$7,Translations!$A$1:$E$1,0),FALSE) -> MAD-565-I - only flash (loop) | B61: =VLOOKUP("VAD analógico con aislador",Translations!$A$4:$E$209,MATCH('System Calculation'!$J$7,Translations!$A$1:$E$1,0),FALSE) -> Addressable VAD with isolator | D61: =1580*10^-6 -> 0.00158 | E61: =C61*D61 -> 0 | F61: =C61*'System Calculation'!$I$11 -> 0 | G61: =33.45*10^-3 -> 0.03345 | H61: 0 | I61: 0
A62: =VLOOKUP("MAD-565-I - solo flash (FA externa)",Translations!$A$4:$E$209,MATCH('System Calculation'!$J$7,Translations!$A$1:$E$1,0),FALSE) -> MAD-565-I - only flash (external PS) | B62: =VLOOKUP("VAD analógico con aislador",Translations!$A$4:$E$209,MATCH('System Calculation'!$J$7,Translations!$A$1:$E$1,0),FALSE) -> Addressable VAD with isolator | D62: =350*10^-6 -> 0.00035 | E62: =C62*D62 -> 0 | F62: =C62*'System Calculation'!$I$11 -> 0 | G62: =0.8*10^-3 -> 0.0008 | H62: 0 | I62: 0 | P62: =IF(AND(C62>0),VLOOKUP("Info: Fuente externa 24V necesaria. Certificada EN 54-4",Translations!$A$4:$E$209,MATCH('System Calculation'!$J$7,Translations!$A$1:$E$1,0),FALSE)," ") -> 
A63: =VLOOKUP("MAD-567-I (lazo)",Translations!$A$4:$E$209,MATCH('System Calculation'!$J$7,Translations!$A$1:$E$1,0),FALSE) -> MAD-567-I (loop) | B63: =VLOOKUP("Base sirena con aislador",Translations!$A$4:$E$209,MATCH('System Calculation'!$J$7,Translations!$A$1:$E$1,0),FALSE) -> Sounder base with isolator | D63: =1170*10^-6 -> 0.00117 | E63: 0 | F63: =C63*'System Calculation'!$I$11 -> 0 | G63: =8.95*10^-3 -> 0.00895 | H63: 0 | I63: 0
A64: =VLOOKUP("MAD-567-I (FA externa)",Translations!$A$4:$E$209,MATCH('System Calculation'!$J$7,Translations!$A$1:$E$1,0),FALSE) -> MAD-567-I (external PS) | B64: =VLOOKUP("Base sirena con aislador",Translations!$A$4:$E$209,MATCH('System Calculation'!$J$7,Translations!$A$1:$E$1,0),FALSE) -> Sounder base with isolator | D64: =261*10^-6 -> 0.000261 | E64: 0 | F64: =C64*'System Calculation'!$I$11 -> 0 | G64: =0.71*10^-3 -> 0.00071 | H64: 0 | I64: 0 | P64: =IF(AND(C64>0),VLOOKUP("Info: Fuente externa 24V necesaria. Certificada EN 54-4",Translations!$A$4:$E$209,MATCH('System Calculation'!$J$7,Translations!$A$1:$E$1,0),FALSE)," ") -> 
A65: =VLOOKUP("MAD-569-I (lazo)",Translations!$A$4:$E$209,MATCH('System Calculation'!$J$7,Translations!$A$1:$E$1,0),FALSE) -> MAD-569-I (loop) | B65: =VLOOKUP("Base sirena y VAD con aislador",Translations!$A$4:$E$209,MATCH('System Calculation'!$J$7,Translations!$A$1:$E$1,0),FALSE) -> Sounder base and VAD with isolator | D65: =1170*10^-6 -> 0.00117 | E65: 0 | F65: =C65*'System Calculation'!$I$11 -> 0 | G65: =23.26*10^-3 -> 0.02326 | H65: 0 | I65: 0
A66: =VLOOKUP("MAD-569-I (FA externa)",Translations!$A$4:$E$209,MATCH('System Calculation'!$J$7,Translations!$A$1:$E$1,0),FALSE) -> MAD-569-I (external PS) | B66: =VLOOKUP("Base sirena y VAD con aislador",Translations!$A$4:$E$209,MATCH('System Calculation'!$J$7,Translations!$A$1:$E$1,0),FALSE) -> Sounder base and VAD with isolator | D66: =258.9*10^-6 -> 0.0002589 | E66: 0 | F66: =C66*'System Calculation'!$I$11 -> 0 | G66: =0.71*10^-3 -> 0.00071 | H66: 0 | I66: 0 | P66: =IF(AND(C66>0),VLOOKUP("Info: Fuente externa 24V necesaria. Certificada EN 54-4",Translations!$A$4:$E$209,MATCH('System Calculation'!$J$7,Translations!$A$1:$E$1,0),FALSE)," ") -> 
A67: =VLOOKUP("MAD-569-I - solo flash (lazo)",Translations!$A$4:$E$209,MATCH('System Calculation'!$J$7,Translations!$A$1:$E$1,0),FALSE) -> MAD-569-I - only flash (loop) | B67: =VLOOKUP("Base VAD con aislador",Translations!$A$4:$E$209,MATCH('System Calculation'!$J$7,Translations!$A$1:$E$1,0),FALSE) -> VAD base with isolator | D67: =1170*10^-6 -> 0.00117 | E67: 0 | F67: =C67*'System Calculation'!$I$11 -> 0 | G67: =23.26*10^-3 -> 0.02326 | H67: 0 | I67: 0
A68: =VLOOKUP("MAD-569-I solo flash (FA externa)",Translations!$A$4:$E$209,MATCH('System Calculation'!$J$7,Translations!$A$1:$E$1,0),FALSE) -> MAD-569-I only flash (external PS) | B68: =VLOOKUP("Base VAD con aislador",Translations!$A$4:$E$209,MATCH('System Calculation'!$J$7,Translations!$A$1:$E$1,0),FALSE) -> VAD base with isolator | D68: =258.9*10^-6 -> 0.0002589 | E68: 0 | F68: =C68*'System Calculation'!$I$11 -> 0 | G68: =0.71*10^-3 -> 0.00071 | H68: 0 | I68: 0 | P68: =IF(AND(C68>0),VLOOKUP("Info: Fuente externa 24V necesaria. Certificada EN 54-4",Translations!$A$4:$E$209,MATCH('System Calculation'!$J$7,Translations!$A$1:$E$1,0),FALSE)," ") -> 
A69: MAD-472 | B69: =VLOOKUP("Base sirena",Translations!$A$4:$E$209,MATCH('System Calculation'!$J$7,Translations!$A$1:$E$1,0),FALSE) -> Sounder base | D69: =107.4*10^-6 -> 0.0001074 | E69: =C69*D69 -> 0 | F69: =C69*'System Calculation'!$I$11 -> 0 | G69: =8.45*10^-3 -> 0.00845 | H69: 0 | I69: 0
A70: MAD-473 | B70: =VLOOKUP("Base sirena y flash",Translations!$A$4:$E$209,MATCH('System Calculation'!$J$7,Translations!$A$1:$E$1,0),FALSE) -> Sounder base with beacon | D70: =106.8*10^-6 -> 0.0001068 | E70: 0 | F70: =C70*'System Calculation'!$I$11 -> 0 | G70: =9.48*10^-3 -> 0.00948 | H70: 0 | I70: 0
A71: PAD-10A-I | B71: =VLOOKUP("Piloto indicador analógico con aislador",Translations!$A$4:$E$209,MATCH('System Calculation'!$J$7,Translations!$A$1:$E$1,0),FALSE) -> Addressable remote indicator with isolator | D71: =176.4*10^-6 -> 0.0001764 | E71: 0 | F71: =C71*'System Calculation'!$I$11 -> 0 | G71: =2.98*10^-3 -> 0.00298 | H71: 0 | I71: 0 | N71: =IF(C71<>0,C71," ") -> 
A72: =VLOOKUP("TPLD-100 (CCD-102) = 3 dir. Lazo",Translations!$A$4:$E$209,MATCH('System Calculation'!$J$7,Translations!$A$1:$E$1,0),FALSE) -> TPLD-100 (CCD-102) = 3 Loop dir. | B72: =VLOOKUP("Conexión central convencional 2 zonas",Translations!$A$4:$E$209,MATCH('System Calculation'!$J$7,Translations!$A$1:$E$1,0),FALSE) -> Conventional control panel conection 2 zones | D72: =1863*10^-6 -> 0.001863 | E72: 0 | F72: =C72 -> 0 | G72: =1.86*10^-3 -> 0.00186 | H72: 0 | I72: 0 | N72: =IF(C72<>0,C72*3," ") -> 
A73: =VLOOKUP("TPLD-100 (CCD-104) = 5 dir. Lazo",Translations!$A$4:$E$209,MATCH('System Calculation'!$J$7,Translations!$A$1:$E$1,0),FALSE) -> TPLD-100 (CCD-104) = 5 Loop dir. | B73: =VLOOKUP("Conexión central convencional 4 zonas",Translations!$A$4:$E$209,MATCH('System Calculation'!$J$7,Translations!$A$1:$E$1,0),FALSE) -> Conventional control panel conection 4 zones | D73: =1863*10^-6 -> 0.001863 | E73: 0 | F73: =C73 -> 0 | G73: =1.86*10^-3 -> 0.00186 | H73: 0 | I73: 0 | N73: =IF(C73<>0,C73*5," ") -> 
A74: =VLOOKUP("TPLD-100 (CCD-108) = 9 dir. Lazo",Translations!$A$4:$E$209,MATCH('System Calculation'!$J$7,Translations!$A$1:$E$1,0),FALSE) -> TPLD-100 (CCD-108) = 9 Loop dir. | B74: =VLOOKUP("Conexión central convencional 8 zonas",Translations!$A$4:$E$209,MATCH('System Calculation'!$J$7,Translations!$A$1:$E$1,0),FALSE) -> Conventional control panel conection 8 zones | D74: 0.001863 | E74: 0 | F74: 0 | G74: 0.00186 | H74: 0 | I74: 0 | N74: =IF(C74<>0,C74*9," ") -> 
A75: =VLOOKUP("TPLD-100 (CCD-112) = 13 dir. Lazo",Translations!$A$4:$E$209,MATCH('System Calculation'!$J$7,Translations!$A$1:$E$1,0),FALSE) -> TPLD-100 (CCD-112) = 13 Loop dir. | B75: =VLOOKUP("Conexión central convencional 12 zonas",Translations!$A$4:$E$209,MATCH('System Calculation'!$J$7,Translations!$A$1:$E$1,0),FALSE) -> Conventional control panel conection 12 zones | D75: 0.001863 | E75: 0 | F75: 0 | G75: 0.00186 | H75: 0 | I75: 0 | N75: =IF(C75<>0,C75*13," ") -> 
A76: =VLOOKUP("TPLD-100 (CCD-103) = 7 dir. Lazo",Translations!$A$4:$E$209,MATCH('System Calculation'!$J$7,Translations!$A$1:$E$1,0),FALSE) -> TPLD-100 (CCD-103) = 7 Loop dir. | B76: =VLOOKUP("Conexión central de extinción",Translations!$A$4:$E$209,MATCH('System Calculation'!$J$7,Translations!$A$1:$E$1,0),FALSE) -> Extinguising control panel conection | D76: 0.001863 | E76: 0 | F76: 0 | G76: 0.00186 | H76: 0 | I76: 0 | N76: =IF(C76<>0,C76*7," ") -> 
A77: =VLOOKUP("Total",Translations!$A$4:$E$209,MATCH('System Calculation'!$J$7,Translations!$A$1:$E$1,0),FALSE) -> Total | C77: =SUM(C20:C76) -> 0 | E77: =SUM(E20:E76) -> 0 | F77: =SUM(F20:F70) -> 0 | I77: =SUM(I20:I76) -> 0 | J77: 0 | K77: 0 | L77: 0 | M77: 0 | N77: 0
C78: =IF($N$77>250,VLOOKUP("Error: El lazo no admite más de 250 direcciones",Translations!$A$4:$E$209,MATCH('System Calculation'!$J$7,Translations!$A$1:$E$1,0),FALSE),"") -> 
A80: =VLOOKUP("Parámetros de lazo",Translations!$A$4:$E$209,MATCH('System Calculation'!$J$7,Translations!$A$1:$E$1,0),FALSE) -> Loop parameters
A81: Cu | B81: 0.0172 | C81: Ω*mm2/m
A82: =VLOOKUP("I_Reposo",Translations!$A$4:$E$209,MATCH('System Calculation'!$J$7,Translations!$A$1:$E$1,0),FALSE) -> I_Standby | B82: =E77+SUMIF(C77,">0",$R$9)/1000 -> 0 | C82: A
A83: =VLOOKUP("I_Alarma",Translations!$A$4:$E$209,MATCH('System Calculation'!$J$7,Translations!$A$1:$E$1,0),FALSE) -> I_Alarm | B83: =I77-J77 -> 0 | C83: A
A84: =VLOOKUP("I_Sirenas",Translations!$A$4:$E$209,MATCH('System Calculation'!$J$7,Translations!$A$1:$E$1,0),FALSE) -> I_Sounders | B84: =J77 -> 0 | C84: A
A85: =VLOOKUP("I_Total",Translations!$A$4:$E$209,MATCH('System Calculation'!$J$7,Translations!$A$1:$E$1,0),FALSE) -> I_Total | B85: =SUM(B83:B84)+SUMIF(C77,">0",$R$9)/1000 -> 0 | C85: A
A86: =VLOOKUP("V_Lin_Anillo",Translations!$A$4:$E$209,MATCH('System Calculation'!$J$7,Translations!$A$1:$E$1,0),FALSE) -> V_Lin_Ring | B86: =IF(B85>0.1,7.9,IF(B106<1,6.9,7.9)) -> 7.9 | C86: V
A88: =VLOOKUP("Sección mínima de cable para longitudes estándar",Translations!$A$4:$E$209,MATCH('System Calculation'!$J$7,Translations!$A$1:$E$1,0),FALSE) -> Minimum cable cross section for standard lenghts | M88: =VLOOKUP("Aviso: La sección mínima de cable en el lazo es 0,5 mm2",Translations!$A$4:$E$209,MATCH('System Calculation'!$J$7,Translations!$A$1:$E$1,0),FALSE) -> Warning: The minimum cross section in the loop is 0,5 mm2
A89: =VLOOKUP("Longitudes",Translations!$A$4:$E$209,MATCH('System Calculation'!$J$7,Translations!$A$1:$E$1,0),FALSE) -> Lengths | B89: 1000 | C89: 1500 | D89: 1500 | E89: 2000 | G89: 2000 | I89: 2500 | J89: 3000 | K89: 3500 | L89: m
A90: =VLOOKUP("R_Cable",Translations!$A$4:$E$209,MATCH('System Calculation'!$J$7,Translations!$A$1:$E$1,0),FALSE) -> R_Cable | B90: =((($B$81*B89)/B92)*2) ->  | C90: =((($B$81*C89)/C92)*2) ->  | D90: =((($B$81*D89)/D92)*2) ->  | L90: Ω
A91: =VLOOKUP("R_eq_Anillo",Translations!$A$4:$E$209,MATCH('System Calculation'!$J$7,Translations!$A$1:$E$1,0),FALSE) -> R_eq_Ring | B91: =B90/2 ->  | C91: =C90/2 ->  | I91: =I90/2 ->  | J91: =J90/2 ->  | K91: =K90/2 ->  | L91: Ω
A92: =VLOOKUP("S_min",Translations!$A$4:$E$209,MATCH('System Calculation'!$J$7,Translations!$A$1:$E$1,0),FALSE) -> S_min | B92: =IF((($B$81*B$89)/(($B$86-((SUM($C$21,$C$23,$C$25,$C$27)*0.1)*$B$85))/$B$85))<0.5,0.5,(($B$81*B$89)/(($B$86-((SUM($C$21,$C$23,$C$25,$C$27)*0.1)*$B$85))/$B$85))) ->  | L92: mm2
A94: =VLOOKUP("Longitud máxima de cable para secciones estándar (IEC 60228)",Translations!$A$4:$E$209,MATCH('System Calculation'!$J$7,Translations!$A$1:$E$1,0),FALSE) -> Maximum cable length for standard cross sections (IEC 60228) | M94: =VLOOKUP("Aviso: La sección mínima de cable en el lazo es 0,5 mm2",Translations!$A$4:$E$209,MATCH('System Calculation'!$J$7,Translations!$A$1:$E$1,0),FALSE) -> Warning: The minimum cross section in the loop is 0,5 mm2
A95: =VLOOKUP("Sección",Translations!$A$4:$E$209,MATCH('System Calculation'!$J$7,Translations!$A$1:$E$1,0),FALSE) -> Cross section | B95: 0.5 | C95: 0.75 | D95: 0.75 | E95: 1 | G95: 1 | I95: 1.5 | J95: 2.5 | K95: 4 | L95: mm2
A96: =VLOOKUP("R_Cable",Translations!$A$4:$E$209,MATCH('System Calculation'!$J$7,Translations!$A$1:$E$1,0),FALSE) -> R_Cable | B96: =$B$81*B98/B95*2 ->  | C96: =$B$81*C98/C95*2 ->  | L96: Ω
A97: =VLOOKUP("R_eq_Ring",Translations!$A$4:$E$209,MATCH('System Calculation'!$J$7,Translations!$A$1:$E$1,0),FALSE) -> R_eq_Ring | B97: =B96/2 ->  | C97: =C96/2 ->  | I97: =I96/2 ->  | J97: =J96/2 ->  | K97: =K96/2 ->  | L97: Ω
A98: =VLOOKUP("L_max",Translations!$A$4:$E$209,MATCH('System Calculation'!$J$7,Translations!$A$1:$E$1,0),FALSE) -> L_max | B98: =IF((((($B$86-((SUM($C$21,$C$23,$C$25,$C$27)*0.1)*$B$85))/$B$85)*B$95)/$B$81)>3500,3500,(((($B$86-((SUM($C$21,$C$23,$C$25,$C$27)*0.1)*$B$85))/$B$85)*B$95)/$B$81)) ->  | L98: m
A100: =VLOOKUP("Cálculo Corriente Máxima",Translations!$A$4:$E$209,MATCH('System Calculation'!$J$7,Translations!$A$1:$E$1,0),FALSE) -> Maximum current calculation
A101: =VLOOKUP("Sección de cable",Translations!$A$4:$E$209,MATCH('System Calculation'!$J$7,Translations!$A$1:$E$1,0),FALSE) -> Cable cross section | B101: =$B$10 -> 0 | C101: mm2 | I101: =IF(B101<0.5,"Error: La sección mínima de cable en el lazo es 0,5 mm2","") -> Error: La sección mínima de cable en el lazo es 0,5 mm2
A102: =VLOOKUP("Longitud efectiva de cable",Translations!$A$4:$E$209,MATCH('System Calculation'!$J$7,Translations!$A$1:$E$1,0),FALSE) -> Effective cable length | B102: =IF(B14=Data!D46,$B$11-MIN(B12,B13),$B$11) -> 0 | C102: m | D102: =B12/B11 ->  | E102: =IFERROR(B13/B11,"") ->  | F102: =(B11-B12-B13)/B11 ->  | I102: =IF(B11>3500,VLOOKUP("Error: La longitud máxima de lazo es 3500 m",Translations!$A$4:$E$209,MATCH('System Calculation'!$J$7,Translations!$A$1:$E$1,0),FALSE),"") -> 
A103: =VLOOKUP("R_Cable_Sis",Translations!$A$4:$E$209,MATCH('System Calculation'!$J$7,Translations!$A$1:$E$1,0),FALSE) -> R_Cable_Sys | B103: =IFERROR(((($B$81*B102)/B101)*2)+(SUM(C21,C23,C25,C27,)*0.1),"") ->  | C103: Ω
A104: =VLOOKUP("R_eq_Clase",Translations!$A$4:$E$209,MATCH('System Calculation'!$J$7,Translations!$A$1:$E$1,0),FALSE) -> R_eq_Class | B104: =IFERROR(B103*C14,"") ->  | C104: Ω | D104: Depende de la topología del lazo | E104: =VLOOKUP("Depende de la topología de lazo",Translations!$A$4:$E$209,MATCH('System Calculation'!$J$7,Translations!$A$1:$E$1,0),FALSE) -> Depends on the loop topology
A105: =VLOOKUP("R_eq_Final",Translations!$A$4:$E$209,MATCH('System Calculation'!$J$7,Translations!$A$1:$E$1,0),FALSE) -> R_eq_Final | B105: =IFERROR((((($B$81*B11*F102)/B101)*2)+(SUM(C21,C23,C25,C27,)*0.1))*C14*C15+IF(B14=Data!D46,((($B$81*B11*(MAX(D102,E102))/B101)*2)*C14),((($B$81*B11*D102)/B101)*2)*C14+((($B$81*B11*E102)/B101)*2)*C14),"") ->  | C105: Ω | D105: Depende del factor de distribución | E105: =VLOOKUP("Depende del factor de distribución",Translations!$A$4:$E$209,MATCH('System Calculation'!$J$7,Translations!$A$1:$E$1,0),FALSE) -> Depends on the distribution factor
A106: =VLOOKUP("Caída de tensión",Translations!$A$4:$E$209,MATCH('System Calculation'!$J$7,Translations!$A$1:$E$1,0),FALSE) -> Voltage drop | B106: =IFERROR(B85*B105,"") ->  | C106: V
A107: =VLOOKUP("Corriente máxima",Translations!$A$4:$E$209,MATCH('System Calculation'!$J$7,Translations!$A$1:$E$1,0),FALSE) -> Maximum current | B107: =IFERROR($B$86/$B$105-$R$9*10^-3,"") ->  | C107: A
A108: I_max
A109: =VLOOKUP("Comprobación sistema",Translations!$A$4:$E$209,MATCH('System Calculation'!$J$7,Translations!$A$1:$E$1,0),FALSE) -> System check
A110: =VLOOKUP("Corriente",Translations!$A$4:$E$209,MATCH('System Calculation'!$J$7,Translations!$A$1:$E$1,0),FALSE) -> Consumption | C110: =IFERROR(IF($B$85>0.75,VLOOKUP("FALLO",Translations!$A$4:$E$209,MATCH('System Calculation'!$J$7,Translations!$A$1:$E$1,0),FALSE),IF($B$107>=$B$85,"OK","FALLO")),VLOOKUP("ERROR",Translations!$A$4:$E$209,MATCH('System Calculation'!$J$7,Translations!$A$1:$E$1,0),FALSE)) -> OK | I110: =IFERROR(IF($B$85>0.75,VLOOKUP("Error: La corriente de lazo es mayor que la corriente máxima permitida",Translations!$A$4:$E$209,MATCH('System Calculation'!$J$7,Translations!$A$1:$E$1,0),FALSE),IF($B$107<$B$85,VLOOKUP("Error: La corriente de lazo es mayor que la corriente máxima permitida",Translations!$A$4:$E$209,MATCH('System Calculation'!$J$7,Translations!$A$1:$E$1,0),FALSE),"")),VLOOKUP("ERROR: Los datos no son correctos",Translations!$A$4:$E$209,MATCH('System Calculation'!$J$7,Translations!$A$1:$E$1,0),FALSE)) -> 
A111: =VLOOKUP("Direcciones",Translations!$A$4:$E$209,MATCH('System Calculation'!$J$7,Translations!$A$1:$E$1,0),FALSE) -> Directions | C111: =IF($N$77<=250,VLOOKUP("OK",Translations!$A$4:$E$209,MATCH('System Calculation'!$J$7,Translations!$A$1:$E$1,0),FALSE),VLOOKUP("FALLO",Translations!$A$4:$E$209,MATCH('System Calculation'!$J$7,Translations!$A$1:$E$1,0),FALSE)) -> OK | I111: =IF($N$77>250,VLOOKUP("Error: El lazo no admite más de 250 direcciones",Translations!$A$4:$E$209,MATCH('System Calculation'!$J$7,Translations!$A$1:$E$1,0),FALSE),"") -> 
A114: =VLOOKUP("Esta herramienta se puede utilizar como ayuda de diseño para Detnov Security S.L.",Translations!A4:E209,MATCH('System Calculation'!J7,Translations!A1:E1,0),FALSE) -> This tool may be used as a design help for Detnov Security S.L. We reserve the right not to be responsible for its accuracy, completeness or quality of the information provided, including any kind of information which could be incomplete or incorrect.

Sheet External power supply
B2: =VLOOKUP("Fuente de alimentación externa",Translations!$A$4:$E$209,MATCH('System Calculation'!$J$7,Translations!$A$1:$E$1,0),FALSE) -> External power supply
B4: =VLOOKUP("Modo de uso",Translations!$A$4:$E$209,MATCH('System Calculation'!$J$7,Translations!$A$1:$E$1,0),FALSE) -> Use mode | D4: =VLOOKUP("Elegir fuente de alimentación según la capacidad de batería total requerida para la autonomía del sistema",Translations!$A$4:$E$209,MATCH('System Calculation'!$J$7,Translations!$A$1:$E$1,0),FALSE) -> Choose the power supply depending on the total required battery capacity for the system autonomy
D7: =VLOOKUP("Fuentes de alimentación",Translations!$A$4:$E$209,MATCH('System Calculation'!$J$7,Translations!$A$1:$E$1,0),FALSE) -> Power Supply Units | H7: =VLOOKUP("Accesorio",Translations!$A$4:$E$209,MATCH('System Calculation'!$J$7,Translations!$A$1:$E$1,0),FALSE) -> Accesory
D8: TUL500 EN | E8: STX2405-E | F8: STX2410-E | G8: STX2410-H | H8: BATT-BOX-65-BLACK
B9: =VLOOKUP("Baterías",Translations!$A$4:$E$209,MATCH('System Calculation'!$J$7,Translations!$A$1:$E$1,0),FALSE) -> Batteries | C9: BTD-1207
C10: BTD-1212
C11: BTD-1218
C12: BTD-1224
C13: BTD-1244
C14: BTD-12120
B17: =VLOOKUP("Nota 1",Translations!$A$4:$E$209,MATCH('System Calculation'!$J$7,Translations!$A$1:$E$1,0),FALSE) -> Note 1 | C17: =VLOOKUP("En verde están indicadas",Translations!$A$4:$E$209,MATCH('System Calculation'!$J$7,Translations!$A$1:$E$1,0),FALSE) -> In green are indicated the batteries that can be used in each power supply, and in red the ones that do not fit in their box. The accesory box BATT-BOX-65-BLACK can be used with all the power supplies and allows up to 65 Ah batteries.
B21: =VLOOKUP("Nota 2",Translations!$A$4:$E$209,MATCH('System Calculation'!$J$7,Translations!$A$1:$E$1,0),FALSE) -> Note 2 | C21: =VLOOKUP("La fuente de alimentación TUL500",Translations!$A$4:$E$209,MATCH('System Calculation'!$J$7,Translations!$A$1:$E$1,0),FALSE) -> The TUL500 EN power supply differences from the others are: - It has a total of 3 outputs, whereas the others have only 1 output, so both outputs could be connected to the FAD-AUXBAT card. - It only works with european mains, and not with the american one as the others do.
B26: =VLOOKUP("Nota 3",Translations!$A$4:$E$209,MATCH('System Calculation'!$J$7,Translations!$A$1:$E$1,0),FALSE) -> Note 3 | C26: =VLOOKUP("El dibujo muestra",Translations!$A$4:$E$209,MATCH('System Calculation'!$J$7,Translations!$A$1:$E$1,0),FALSE) -> The drawing shows the common way of connecting 2 power supplies. For other combinations check the installation manuals of the FAD-AUXBAT card.
B29: =VLOOKUP("Nota 4",Translations!$A$4:$E$209,MATCH('System Calculation'!$J$7,Translations!$A$1:$E$1,0),FALSE) -> Note 4 | C29: =VLOOKUP("Aunque la fuente de alimentación",Translations!$A$4:$E$209,MATCH('System Calculation'!$J$7,Translations!$A$1:$E$1,0),FALSE) -> Although the STX2402-E power supply is also in the catalog, it is not appropiate for the system as it delivers less current than the internal power supply of the panel.

Sheet Data (hidden)
A2: Características centrales | H2: Características baterías
A3: Central | C3: I_Reposo (A) | D3: I_Alarma (A) | E3: Imax (A) | F3: Capacidad BAT max | I3: Voltaje (V) | J3: Capacidad (Ah) | N3: TABLA AUXILIAR
A4: CAD-151-1 & CAD-150-1-Mini | B4: =N6 -> CAD_151_1 | C4: 0.115 | D4: 0.179 | E4: 2.6 | F4: 12 | H4: BTD-1207 | I4: 12 | J4: 7.2 | K4: 120 | L4: BTD-12120 | N4: Centrales
A5: CAD-151-2 | B5: =N7 -> CAD_151_2 | C5: 0.143 | D5: 0.179 | E5: 2.6 | F5: 12 | H5: BTD-1212 | I5: 12 | J5: 12 | K5: 44 | L5: BTD-1244 | O5: =N6 -> CAD_151_1 | P5: =N7 -> CAD_151_2 | Q5: =N8 -> 0 | R5: =N9 -> 0 | S5: =N10 -> 0 | T5: =N11 -> 0 | U5: =N12 -> 0 | V5: =N13 -> 0 | W5: =N14 -> 0 | X5: =N15 -> 0 | Y5: =N16 -> 0 | Z5: =N17 -> 0 | AA5: =N18 -> 0 | AB5: =N19 -> 0
H6: BTD-1218 | I6: 12 | J6: 18 | K6: 24 | L6: BTD-1224 | N6: CAD_151_1 | O6: BTD-1207 | P6: BTD-1207
H7: BTD-1224 | I7: 12 | J7: 24 | K7: 18 | L7: BTD-1218 | N7: CAD_151_2 | O7: BTD-1212 | P7: BTD-1212
H8: BTD-1244 | I8: 12 | J8: 44 | K8: 12 | L8: BTD-1212
H9: BTD-12120 | I9: 12 | J9: 120 | K9: 7.2 | L9: BTD-1207
H11: Características baterías
H12: Cantidad tarjetas
H13: 0
H14: 1
H16: Sección cable | I16: AWG
H17: 0.5 | I17: 21
H18: 0.8 | I18: 20
C19: Tiempos según normativa | H19: 1 | I19: 18
C20: Reposo (h) | D20: Alarma (min) | H20: 1.5 | I20: 16
C21: 72 | D21: 30 | H21: 2 | I21: 15 | N21: TABLA AUXILIAR 2: para condición de batería necesaria
C22: 48 | D22: 15 | H22: 2.5 | I22: 14
C23: 30 | D23: 5 | H23: 4 | I23: 12 | N23: Centrales
C24: 24 | D24: 0 | N24: CAD_151_1 | O24: BTD-1207 | P24: BTD-1212
C25: 4 | D25: 60 | N25: CAD_151_2 | O25: BTD-1207 | P25: BTD-1212
H26: Fuentes alimentación:
H27: 120 | I27: STX2410 + BATT-BOX-65
H28: 38 | I28: STX2410-H
H29: 17 | I29: =VLOOKUP("TUL500 EN o STX24XX-E",Translations!$A$4:$E$209,MATCH('System Calculation'!$J$7,Translations!$A$1:$E$1,0),FALSE) -> TUL500 EN or STX24XX-E
H31: ='System Calculation'!A15 -> 0 | I31: =VLOOKUP(H31,Data!B4:D17,2,0) ->  | J31: =VLOOKUP(H31,Data!B4:D17,3,0) -> 
H32: ='System Calculation'!A16 -> 0 | I32: =VLOOKUP(H32,Data!H4:J7,2,0) ->  | J32: =VLOOKUP(H32,Data!H4:J7,3,0) -> 
H34: Minimum battery needed | J34: Dif. Entre BTD y Minimum battery needed
H35: ='System Calculation'!E23 ->  | I35: =MATCH(J35,K4:K9,-1) ->  | J35: =H35-J32 ->  | K35: =MATCH(J35,H27:H29,-1) -> 
H36: BAT necesaria | I36: =INDEX(L4:L9,I35,1) ->  | J36: PS necesaria: | K36: =INDEX(I27:I29,K35,1) -> 
A40: Para ocultar valores en celda: formato de numero. En el cuadro tipo escribir ;;; (3 puntos y coma)
A43: Factor de distribución | D43: Topología
A44: Distribución | B44: Factor | D44: Clase | E44: Factor
A45: 1 | B45: 0.57 | D45: =VLOOKUP("Clase A",Translations!$A$4:$E$209,MATCH('System Calculation'!$J$7,Translations!$A$1:$E$1,0),FALSE) -> Class A | E45: 0.27 | F45: Se divide entre 2 tanto la resistencia como la corriente, factor 4, corregido según pruebas con MAD-565-I
A46: 0.75 | B46: =B49-(A46*(B49-B45)) -> 0.6775 | D46: =VLOOKUP("Modo degradado",Translations!$A$4:$E$209,MATCH('System Calculation'!$J$7,Translations!$A$1:$E$1,0),FALSE) -> Degraded mode | E46: 1.18
A47: 0.5 | B47: =B49-(A47*(B49-B45)) -> 0.785
A48: 0.25 | B48: =B49-(A48*(B49-B45)) -> 0.8925
A49: 0 | B49: 1
B50: * Estos valores han sido diseñados respecto al producto de más consumo: MAD-565-I

Sheet Translations
A1: Texto | B1: Español | C1: English | D1: Your language
A2: Idioma | B2: Idioma | C2: Language
A3: Pulsar botón para reiniciar todos los valores e iniciar un nuevo proyecto | B3: Pulsar botón para reiniciar todos los valores e iniciar un nuevo proyecto | C3: Press the button to reset all the values and start a new project
A4: Tiempo respaldo baterías | B4: Tiempo respaldo baterías | C4: Battery backup time
A5: Tiempo en reposo | B5: Tiempo en reposo | C5: Standby time
A6: Tiempo en alarma | B6: Tiempo en alarma | C6: Alarm time
A7: Nota: los valores seleccionados no cumplen EN 54 | B7: Nota: los valores seleccionados no cumplen EN 54 | C7: Note: the values selected do not comply with EN 54
A8: Parámetros del sistema y baterías | B8: Parámetros del sistema y baterías | C8: Battery and system parameters
A9: Salida auxiliar 24 V central | B9: Salida auxiliar 24 V central | C9: Panel auxilliary 24 V output
A10: Salida sirenas 1 | B10: Salida sirenas 1 | C10: Sounder output 1
A11: Salida sirenas 2 | B11: Salida sirenas 2 | C11: Sounder output 2
A12: I_Total_Reposo | B12: I_Total_Reposo | C12: I_Total_Standby
A13: I_Total_Alarma | B13: I_Total_Alarma | C13: I_Total_Alarm
A14: Factor de degradación | B14: Factor de degradación | C14: Derating factor
A15: Batería seleccionada para la autonomía | B15: Batería seleccionada para la autonomía | C15: Battery selected for backup time
A16: Consumo sistema | B16: Consumo sistema | C16: System consumption
A17: Batería mínima necesaria | B17: Batería mínima necesaria | C17: Minimum battery required
A18: Máximo nº sirenas en alarma simultánea | B18: Máximo nº sirenas en alarma simultánea | C18: Maximum sounders in alarm at the same time
A19: Tiempo baterías* | B19: Tiempo baterías* | C19: Battery time*
A20: *Tiempo baterías = Tiempo reposo + Tiempo en alarma | B20: *Tiempo baterías = Tiempo reposo + Tiempo en alarma | C20: *Battery time = Standby time + Alarm mode time
A21: Seleccionar tiempo en reposo | B21: Seleccionar tiempo en reposo | C21: Select standby time
A22: Seleccionar tiempo en alarma | B22: Seleccionar tiempo en alarma | C22: Select alarm time
A23: Seleccionar central de la lista | B23: Seleccionar central de la lista | C23: Select control panel from the list
A24: Seleccionar batería de la lista | B24: Seleccionar batería de la lista | C24: Select battery from the list
A25: Sirenas | B25: Sirenas | C25: Sounders
A26: Cumplimentar el campo para el máximo % de sirenas en alarma al mismo tiempo (campo amarillo) | B26: Cumplimentar el campo para el máximo % de sirenas en alarma al mismo tiempo | C26: Fill the field for the maximum % of sounders in alarm at the same time
A27: Nota: los valores seleccionados no cumplen EN 54 | B27: Nota: los valores seleccionados no cumplen EN 54 | C27: Note: this value does not comply with EN 54
A28: Aviso: Corriente máxima 500 mA excedida. Necesaria fuente externa 24V | B28: Aviso: Corriente máxima 500 mA excedida. Necesaria fuente externa 24 V | C28: Warning: 500 mA maximum current exceeded. External 24 V needed
A29: No suficiente | B29: No suficiente | C29: Not enough
A30: Necesita fuente de alimentación externa: | B30: Necesita fuente de alimentación externa: | C30: External power supply needed:
A31: Con baterías adicionales mínimas de: | B31: Con baterías adicionales mínimas de: | C31: With minimum additional batteries:
A32: El sistema excede el consumo máximo permitido | B32: El sistema excede el consumo máximo permitido | C32: The system exceeds the maximum consumption allowed
A33: Revisar pestaña Conexión fuente externa | B33: Revisar pestaña External power supply | C33: Check External power supply tab
A34: Lazo | B34: Lazo | C34: Loop
A35: Lazo 1 | B35: Lazo 1 | C35: Loop 1
A36: Lazo 2 | B36: Lazo 2 | C36: Loop 2
A37: Total | B37: Total | C37: Total
A38: I_Reposo (A) | B38: I_Reposo (A) | C38: I_Standby (A)
A39: I_Alarma (A) | B39: I_Alarma (A) | C39: I_Alarm (A)
A40: Tarjetas auxiliares | B40: Tarjetas auxiliares | C40: Extension cards
A41: PCS | B41: PCS | C41: PCS
A42: Cumplimentar el campo PCS si la central tiene tarjetas auxiliares (campo amarillo) | B42: Cumplimentar el campo PCS si la central tiene tarjetas auxiliares | C42: Fill the PCS field if the panel includes extension cards
A43: Esta herramienta se puede utilizar como ayuda de diseño para Detnov Security S.L. | B43: Esta herramienta se puede utilizar como ayuda de diseño para Detnov Security S.L. Nos reservamos el derecho de no ser responsables de la exactitud, integridad o calidad de la información proporcionada, incluido cualquier tipo de información que pueda ser incompleta o incorrecta. | C43: This tool may be used as a design help for Detnov Security S.L. We reserve the right not to be responsible for its accuracy, completeness or quality of the information provided, including any kind of information which could be incomplete or incorrect.
A44: Sección de cable | B44: Sección de cable | C44: Cable cross section
A45: Longitud de lazo | B45: Longitud de lazo | C45: Loop length
A46: Distancia de S al primer dispositivo | B46: Distancia de S al primer dispositivo | C46: Distance from S to first device
A47: Distancia de R al último dispositivo | B47: Distancia de R al último dispositivo | C47: Distance from R to last device
A48: Topología de lazo | B48: Topología de lazo | C48: Loop topology
A49: Factor de distribución | B49: Factor de distribución | C49: Distribution factor
A50: Clase A | B50: Clase A | C50: Class A
A51: Modo degradado | B51: Modo degradado | C51: Degraded mode
A52: Información | B52: Información | C52: Information
A53: Esta es la distancia de la salida del lazo hasta el primer dispositivo | B53: Esta es la distancia de la salida del lazo hasta el primer dispositivo | C53: This is the distance from the S of the loop to the first device
A54: Esta es la distancia del último dispositivo al retorno del lazo | B54: Esta es la distancia del último dispositivo al retorno del lazo | C54: This is the distance from the last device to the R of the loop
A55: La topología de lazo hace referencia | B55: La topología de lazo hace referencia a si el lazo está cerrado en Clase A, o si el lazo está en modo degradado porque sufre alguna avería de lazo abierto | C55: Loop topology takes into account whether the loop is closed in Class A, or the loop is in degraded mode due to an open loop fault
A56: El factor de distribución hace referencia | B56: El factor de distribución es una estimación de cómo de equitativo están distribuidos los dispositivos en el lazo, siendo el 100% distribuidos perfectamente | C56: Distribution factor is an estimation of how equitative are the devices distributed along the loop, being 100% perfectly distributed
A57: TUL500 EN o STX24XX-E | B57: TUL500 EN o STX24XX-E | C57: TUL500 EN or STX24XX-E
A58: metros | B58: metros | C58: meters
A59: Comprobación sistema | B59: Comprobación sistema | C59: System check
A60: Corriente | B60: Corriente | C60: Consumption
A61: Direcciones | B61: Direcciones | C61: Directions
A62: FALLO | B62: FALLO | C62: FAIL
A63: ERROR | B63: ERROR | C63: ERROR
A64: OK | B64: OK | C64: OK
A65: Trama comunicaciones | B65: Trama comunicaciones | C65: Communication frame
A66: Error: La longitud máxima de lazo es 3500 m | B66: Error: La longitud máxima de lazo es 3500 m | C66: Error: The loop maximum length is 3500 m
A67: La suma de distancias desde la central a los dipositivos no puede ser mayor a la longitud de lazo | B67: La suma de distancias desde la central a los dipositivos no puede ser mayor a la longitud de lazo | C67: The sum of both distances from the panel to the devices can not be greater than the loop length
A68: Lazo abierto. Toda la corriente en el mismo extremo del cable (peor caso) | B68: Lazo abierto. Toda la corriente en el mismo extremo del cable (peor caso) | C68: Open loop. All the current through the same cable end (worst case)
A69: Lazo cerrado. Se divide la corriente por los dos extremos (mejor caso) | B69: Lazo cerrado. Se divide la corriente por los dos extremos (mejor caso) | C69: Closed loop. The current is divided on both ends (best case)
A70: Todos en el mismo extremo del cable (peor caso) | B70: Todos en el mismo extremo del cable (peor caso) | C70: All the elements in the same end (worst case)
A71: Distribuidos equitativamente (mejor caso) | B71: Distribuidos equitativamente (mejor caso) | C71: Equally distributed (best case)
A72: Caso intermedio | B72: Caso intermedio | C72: Intermediate case
A73: Cumplimentar Sección de cable en mm2 y Longitud de lazo en metros (campo amarillo) | B73: Cumplimentar Sección de cable en mm2 y Longitud de lazo en metros | C73: Fill Cable cross section in mm2 and Loop length in meters
A74: Seleccionar el factor de distribución en el lazo y topología de clase | B74: Seleccionar el factor de distribución en el lazo y topología de clase | C74: Select the distribution factor in the loop and the topology
A75: Cumplimentar el campo PCS para la configuración deseada (campo amarillo) | B75: Cumplimentar el campo PCS para la configuración deseada | C75: Fill the PCS field for the desired configuration
A76: Dispositivos Lazo 1 | B76: Dispositivos Lazo 1 | C76: Loop 1 devices
A77: Dispositivos Lazo 2 | B77: Dispositivos Lazo 2 | C77: Loop 2 devices
A78: REF. | B78: REF. | C78: REF.
A79: Descripción | B79: Descripción | C79: Description
A80: PCS | B80: PCS | C80: PCS
A81: I_Sirenas (A) | B81: I_Sirenas (A) | C81: I_Sounders (A)
A82: DET | B82: DET | C82: DET
A83: MOD | B83: MOD | C83: MOD
A84: SIR | B84: SIR | C84: SND
A85: DIR | B85: DIR | C85: DIR
A86: Info: El máximo número de barreras es 20 | B86: Info: El máximo número de barreras es 20 | C86: Info: The maximum number of beam detectors is 20
A87: Info: Alinear barreras de una en una | B87: Info: Alinear barreras de una en una | C87: Info: Align beam detectors one by one
A88: Info: Fuente externa 24V necesaria. La central puede dar 24Vaux, si la corriente máxima 500mA no es excedida. | B88: Info: Fuente externa 24V necesaria. La central puede dar 24Vaux, si la corriente máxima 500mA no es excedida | C88: Info: External 24V power supply needed. The panel can provide 24V aux, if the maximum 500 mA current is not exceeded
A89: Info: Fuente externa 24V necesaria. Certificada EN 54-4 | B89: Info: Fuente externa 24V necesaria. Certificada EN 54-4 | C89: Info: External 24V power supply needed. Certified by EN 54-4
A90: Parámetros de lazo | B90: Parámetros de lazo | C90: Loop parameters
A91: I_Reposo | B91: I_Reposo | C91: I_Standby
A92: I_Alarma | B92: I_Alarma | C92: I_Alarm
A93: I_Sirenas | B93: I_Sirenas | C93: I_Sounders
A94: I_Total | B94: I_Total | C94: I_Total
A95: V_Lin_Anillo | B95: V_Lin_Anillo | C95: V_Lin_Ring
A96: Sección mínima de cable para longitudes estándar | B96: Sección mínima de cable para longitudes estándar | C96: Minimum cable cross section for standard lenghts
A97: Longitudes | B97: Longitudes | C97: Lengths
A98: R_Cable | B98: R_Cable | C98: R_Cable
A99: R_eq_Anillo | B99: R_eq_Anillo | C99: R_eq_Ring
A100: S_min | B100: S_min | C100: S_min
A101: Longitud máxima de cable para secciones estándar (IEC 60228) | B101: Longitud máxima de cable para secciones estándar (IEC 60228) | C101: Maximum cable length for standard cross sections (IEC 60228)
A102: Sección | B102: Sección | C102: Cross section
A103: R_Cable | B103: R_Cable | C103: R_Cable
A104: R_eq_Ring | B104: R_eq_Anillo | C104: R_eq_Ring
A105: L_max | B105: L_max | C105: L_max
A106: Aviso: La sección mínima de cable en el lazo es 0,5 mm2 | B106: Aviso: La sección mínima de cable en el lazo es 0,5 mm2 | C106: Warning: The minimum cross section in the loop is 0,5 mm2
A107: Cálculo Corriente Máxima | B107: Cálculo corriente máxima | C107: Maximum current calculation
A108: Longitud efectiva de cable | B108: Longitud efectiva de cable | C108: Effective cable length
A109: R_Cable_Sis | B109: R_Cable_Sis | C109: R_Cable_Sys
A110: R_eq_Clase | B110: R_eq_Clase | C110: R_eq_Class
A111: R_eq_Final | B111: R_eq_Final | C111: R_eq_Final
A112: Caída de tensión | B112: Caída de tensión | C112: Voltage drop
A113: Corriente máxima | B113: Corriente máxima | C113: Maximum current
A114: Depende de la topología de lazo | B114: Depende de la topología de lazo | C114: Depends on the loop topology
A115: Depende del factor de distribución | B115: Depende del factor de distribución | C115: Depends on the distribution factor
A116: Error: La corriente de lazo es mayor que la corriente máxima permitida | B116: Error: La corriente de lazo es mayor que la corriente máxima permitida | C116: Error: The loop current is greater than the maximum current allowed
A117: Error: El lazo no admite más de 250 direcciones | B117: Error: El lazo no admite más de 250 direcciones | C117: Error: The loop does not allow more than 250 directions
A118: Indicaciones | B118: Indicaciones | C118: Indications
A119: Reduzca el número de direcciones utilizadas | B119: Reduzca el número de direcciones utilizadas | C119: Reduce the number of used directions
A120: Trate de reducir el consumo ajustando la cantidad de dispositivos | B120: Trate de reducir el consumo ajustando la cantidad de dispositivos | C120: Try to reduce the consumption adjusting the number of devices
A121: Trate de modificar los parámetros de cable y lazo | B121: Trate de modificar los parámetros de cable y lazo | C121: Try to modify the cable and loop parameters
A122: ERROR: Los datos no son correctos | B122: ERROR: Los datos no son correctos | C122: ERROR: The data introduced is not correct
A123: Revise o rellene los datos de configuración de lazo | B123: Revise o rellene los datos de configuración de lazo | C123: Check or fill the loop configuration data
A124: Fuente de alimentación externa | B124: Fuente de alimentación externa | C124: External power supply
A125: Modo de uso | B125: Modo de uso | C125: Use mode
A126: Elegir fuente de alimentación según la capacidad de batería total requerida para la autonomía del sistema | B126: Elegir fuente de alimentación según la capacidad de batería total requerida para la autonomía del sistema | C126: Choose the power supply depending on the total required battery capacity for the system autonomy
A127: Baterías | B127: Baterías | C127: Batteries
A128: Fuentes de alimentación | B128: Fuentes de alimentación | C128: Power Supply Units
A129: Accesorio | B129: Accesorio | C129: Accesory
A130: Nota 1 | B130: Nota 1 | C130: Note 1
A131: En verde están indicadas | B131: En verde están indicadas las baterías que pueden ponerse en cada una de las fuentes de alimentación, y en rojo las que no caben en la caja. Con la caja accesorio BATT-BOX-65-BLACK se podría usar cualquier fuente de alimentación con baterías hasta 65 Ah. | C131: In green are indicated the batteries that can be used in each power supply, and in red the ones that do not fit in their box. The accesory box BATT-BOX-65-BLACK can be used with all the power supplies and allows up to 65 Ah batteries.
A132: Nota 2 | B132: Nota 2 | C132: Note 2
A133: La fuente de alimentación TUL500 | B133: La fuente de alimentación TUL500 EN se diferencia del resto en dos factores: - Tiene un total de 3 salidas, a diferencia de las otras que solo tienen 1 salida, por lo que se podrían usar 2 salidas de la TUL500 EN para conectarlas a la tarjeta FAD-AUXBAT. - Solo funciona con tensión de red europea, y no americana como incluyen las otras. | C133: The TUL500 EN power supply differences from the others are: - It has a total of 3 outputs, whereas the others have only 1 output, so both outputs could be connected to the FAD-AUXBAT card. - It only works with european mains, and not with the american one as the others do.
A134: Nota 3 | B134: Nota 3 | C134: Note 3
A135: El dibujo muestra | B135: El dibujo muestra la forma común de conectar 2 fuentes externas. Para otras combinaciones consultar los manuales de instalación de la tarjeta FAD-AUXBAT. | C135: The drawing shows the common way of connecting 2 power supplies. For other combinations check the installation manuals of the FAD-AUXBAT card.
A136: Nota 4 | B136: Nota 4 | C136: Note 4
A137: Aunque la fuente de alimentación | B137: Aunque la fuente de alimentación STX2402-E también esté en catálogo, no es adecuada para el sistema puesto que proporciona menos corriente que la fuente interna de la central. | C137: Although the STX2402-E power supply is also in the catalog, it is not appropiate for the system as it delivers less current than the internal power supply of the panel.
A138: Detector óptico analógico | B138: Detector óptico analógico | C138: Addressable optical smoke detector
A139: Detector óptico analógico con aislador incorporado | B139: Detector óptico analógico con aislador incorporado | C139: Addressable optical smoke detector with built-in isolator
A140: Detector óptico-térmico | B140: Detector óptico-térmico | C140: Addressable optical & heat detector
A141: Detector óptico-térmico con aislador incorporado | B141: Detector óptico-térmico con aislador incorporado | C141: Addressable optical & heat detector with built-in isolator
A142: Detector térmico analógico | B142: Detector térmico analógico | C142: Addressable heat detector
A143: Detector térmico analógico con aislador incorporado | B143: Detector térmico analógico con aislador incorporado | C143: Addressable heat detector with built-in isolator
A144: Detector térmico de alta temperatura analógico | B144: Detector térmico de alta temperatura analógico | C144: Addressable high temperature detector
A145: Detector térmico de alta temperatura analógico con aislador incorporado | B145: Detector térmico de alta temperatura analógico con aislador incorporado | C145: Addressable high temperature detector with built-in isolator
A146: Detector autónomo de gas natural (24V) | B146: Detector autónomo de gas natural (24V) | C146: Standalone natural gas detector (24V)
A147: Detector autónomo de gas natural (230V) | B147: Detector autónomo de gas natural (230V) | C147: Standalone natural gas detector (230V)
A148: Detector autónomo de GLP (24V) | B148: Detector autónomo de GLP (24V) | C148: Standalone LPG detector (24V)
A149: Detector autónomo de GLP (230V) | B149: Detector autónomo de GLP (230V) | C149: Standalone LPG detector (230V)
A150: Detector lineal de humos analógico | B150: Detector lineal de humos analógico | C150: Addressable beam smoke detector
A151: Módulo analógico de 1 entrada (sin/con aislador) | B151: Módulo analógico de 1 entrada (sin/con aislador) | C151: Addressable module 1 input (with/without isolator)
A152: Módulo analógico de 2 entradas (sin/con aislador) | B152: Módulo analógico de 2 entradas (sin/con aislador) | C152: Addressable module 2 inputs (with/without isolator)
A153: Módulo analógico de 5 entradas con aislador | B153: Módulo analógico de 5 entradas con aislador | C153: Addressable module 5 inputs with isolator
A154: Módulo analógico de 10 entradas con aislador | B154: Módulo analógico de 10 entradas con aislador | C154: Addressable module 10 inputs with isolator
A155: Módulo analógico de 1 salida (sin/con aislador) | B155: Módulo analógico de 1 salida (sin/con aislador) | C155: Addressable module 1 output (with/without isolator)
A156: Módulo analógico de 2 salidas (sin/con aislador) | B156: Módulo analógico de 2 salidas (sin/con aislador) | C156: Addressable module 2 outputs (with/without isolator)
A157: Módulo analógico de 5 salidas con aislador | B157: Módulo analógico de 5 salidas con aislador | C157: Addressable module 5 outputs with isolator
A158: Módulo analógico de 10 salidas con aislador | B158: Módulo analógico de 10 salidas con aislador | C158: Addressable module 10 outputs with isolator
A159: Módulo analógico de 1 entrada/1 salida (sin/con aislador) | B159: Módulo analógico de 1 entrada/1 salida (sin/con aislador) | C159: Addressable module 1 input/1 output (with/without isolator)
A160: Módulo analógico de 2 entradas/2 salidas (sin/con aislador) | B160: Módulo analógico de 2 entradas/2 salidas (sin/con aislador) | C160: Addressable module 2 inputs/2 outputs (with/without isolator)
A161: Módulo analógico de 5 entradas/5 salidas con aislador | B161: Módulo analógico de 5 entradas/5 salidas con aislador | C161: Addressable module 5 inputs/5 outputs with isolator
A162: Módulo analógico de 10 entradas/10 salidas con aislador | B162: Módulo analógico de 10 entradas/10 salidas con aislador | C162: Addressable module 10 inputs/10 outputs with isolator
A163: Módulo analógico de 1 salida 24V (sin/con aislador) | B163: Módulo analógico de 1 salida 24V (sin/con aislador) | C163: Addressable module 1 24V output (with/without isolator)
A164: Módulo analógico de 2 salidas 24V (sin/con aislador) | B164: Módulo analógico de 2 salidas 24V (sin/con aislador) | C164: Addressable module 2 24V outputs (with/without isolator)
A165: Módulo analógico de 1 zona convencional (sin/con aislador) | B165: Módulo analógico de 1 zona convencional (sin/con aislador) | C165: Addressable module 1 conventional zone (with/without isolator)
A166: Módulo analógico de 2 zonas convencionales (sin/con aislador) | B166: Módulo analógico de 2 zonas convencionales (sin/con aislador) | C166: Addressable module 2 conventional zones (with/without isolator)
A167: Módulo analógico de 1 salida 230V | B167: Módulo analógico de 1 salida 230V | C167: Addressable module 1 230V output
A168: Módulo analógico de 1 salida 230V con aislador | B168: Módulo analógico de 1 salida 230V con aislador | C168: Addressable module 1 230V output with isolator
A169: Módulo analógico aislador | B169: Módulo analógico aislador | C169: Addressable module isolator
A170: Pulsador analógico con aislador | B170: Pulsador analógico con aislador | C170: Addressable manual call with isolator
A171: Sirena analógica con aislador | B171: Sirena analógica con aislador | C171: Addressable sounder with isolator
A172: Sirena analógica con flash y aislador | B172: Sirena analógica con flash y aislador | C172: Addressable sounder with beacon and isolator
A173: Sirena analógica con VAD y aislador | B173: Sirena analógica con VAD y aislador | C173: Addressable sounder with VAD and isolator
A174: VAD analógico con aislador | B174: VAD analógico con aislador | C174: Addressable VAD with isolator
A175: Base sirena con aislador | B175: Base sirena con aislador | C175: Sounder base with isolator
A176: Base sirena y VAD con aislador | B176: Base sirena y VAD con aislador | C176: Sounder base and VAD with isolator
A177: Base VAD con aislador | B177: Base VAD con aislador | C177: VAD base with isolator
A178: Base sirena | B178: Base sirena | C178: Sounder base
A179: Base sirena y flash | B179: Base sirena y flash | C179: Sounder base with beacon
A180: Piloto indicador analógico con aislador | B180: Piloto indicador analógico con aislador | C180: Addressable remote indicator with isolator
A181: Conexión central convencional 2 zonas | B181: Conexión central convencional 2 zonas | C181: Conventional control panel conection 2 zones
A182: Conexión central convencional 4 zonas | B182: Conexión central convencional 4 zonas | C182: Conventional control panel conection 4 zones
A183: Conexión central convencional 8 zonas | B183: Conexión central convencional 8 zonas | C183: Conventional control panel conection 8 zones
A184: Conexión central convencional 12 zonas | B184: Conexión central convencional 12 zonas | C184: Conventional control panel conection 12 zones
A185: Conexión central de extinción | B185: Conexión central de extinción | C185: Extinguising control panel conection
A186: MAD-464-I Vol. Bajo (78 dB) | B186: MAD-464-I Vol. Bajo (78 dB) | C186: MAD-464-I Low Vol. (78 dB)
A187: MAD-464-I Vol. Medio (93 dB) | B187: MAD-464-I Vol. Medio (93 dB) | C187: MAD-464-I Medium Vol. (93 dB)
A188: MAD-464-I Vol. Alto (97 dB) | B188: MAD-464-I Vol. Alto (97 dB) | C188: MAD-464-I High Vol. (97 dB)
A189: MAD-465-I Vol. Bajo (78 dB) | B189: MAD-465-I Vol. Bajo (78 dB) | C189: MAD-465-I Low Vol. (78 dB)
A190: MAD-465-I Vol. Medio (93 dB) | B190: MAD-465-I Vol. Medio (93 dB) | C190: MAD-465-I Medium Vol. (93 dB)
A191: MAD-465-I Vol. Alto (97 dB) | B191: MAD-465-I Vol. Alto (97 dB) | C191: MAD-465-I High Vol. (97 dB)
A192: MAD-564-I (lazo) | B192: MAD-564-I (lazo) | C192: MAD-564-I (loop)
A193: MAD-564-I (FA externa) | B193: MAD-564-I (FA externa) | C193: MAD-564-I (external PS)
A194: MAD-565-I (lazo) | B194: MAD-565-I (lazo) | C194: MAD-565-I (loop)
A195: MAD-565-I (FA externa) | B195: MAD-565-I (FA externa) | C195: MAD-565-I (external PS)
A196: MAD-565-I - solo flash (lazo) | B196: MAD-565-I - solo flash (lazo) | C196: MAD-565-I - only flash (loop)
A197: MAD-565-I - solo flash (FA externa) | B197: MAD-565-I - solo flash (FA externa) | C197: MAD-565-I - only flash (external PS)
A198: MAD-567-I (lazo) | B198: MAD-567-I (lazo) | C198: MAD-567-I (loop)
A199: MAD-567-I (FA externa) | B199: MAD-567-I (FA externa) | C199: MAD-567-I (external PS)
A200: MAD-569-I (lazo) | B200: MAD-569-I (lazo) | C200: MAD-569-I (loop)
... 9 more rows
